Workbook

Sheet General Info
A1: General Information
A3: Project Title | B3: Hypothetical Analytical Case
A4: Date | B4: 2004-03-16 | S4: =B3&", "&B7&", "&B10&" v "&B9 -> Hypothetical Analytical Case, Length, Tape measurement v Laser measurement
A5: Refinery Name | B5: ABC Refining Company | S5: =B3&", "&B7&", "&B10&" v Predicted from "&B9 -> Hypothetical Analytical Case, Length, Tape measurement v Predicted from Laser measurement
A6: Refinery Location | B6: Somewhere, CA | S6: =B3&","&B7&", Residuals v "&B9 -> Hypothetical Analytical Case,Length, Residuals v Laser measurement
A7: Gasoline Property | B7: Length
A8: Units | B8: feet
A9: Alternative Method | B9: Laser measurement
A10: ASTM Designated Method | B10: Tape measurement | S10: =B9&" ("&B8&")" -> Laser measurement (feet)
S11: =B10&" ("&B8&")" -> Tape measurement (feet)
S12: ="Predicted "&B10&" ("&B8&")" -> Predicted Tape measurement (feet)
S13: =B10&" minus Prediction from "&B9 -> Tape measurement minus Prediction from Laser measurement

Sheet Data Entry
A1: Xdata | B1: Ydata | C1: Y-Hat | D1: Y-Yhat | E1: (X-Xbar)2 | T1: Linest Array
A2: 5073.57 | B2: 5100 | C2: 5072.279329 | D2: =+IF(B2<>"",B2-C2,"") -> 27.72067069 | E2: =+IF(A2<>"",(A2-Report!D$19)^2,"") -> 571174.2592 | G2: a1 | H2: a2 | I2: a | M2: =IF(Report!D29="Pass",IF(Report!D28="Pass","Pass","Fail"),"Fail") -> Pass | T2: =LINEST($B$2:$B$560,$A$2:$A$560,,TRUE) -> 1.000202653 | U2: -2.318845556
A3: 5281.71 | B3: 5280 | C3: 5280.46151 | D3: =+IF(B3<>"",B3-C3,"") -> -0.4615095289 | E3: =+IF(A3<>"",(A3-Report!D$19)^2,"") -> 299888.4481 | G3: 0.025 | H3: =+I3-G3 -> 0.025 | I3: 0.05 | T3: 0.001863833127 | U3: 10.87615333
A4: 5307.48 | B4: 5300 | C4: 5306.236732 | D4: -6.2367319 | E4: =+IF(A4<>"",(A4-Report!D$19)^2,"") -> 272328.1693 | T4: 0.99806957 | U4: 11.69479713
A5: 5352 | B5: 5340 | C5: 5350.765754 | D5: -10.76575402 | E5: =+IF(A5<>"",(A5-Report!D$19)^2,"") -> 227844.612 | T5: 287979.7509 | U5: 557
A6: 5368.49 | B6: 5340 | C6: 5367.259096 | D6: -27.25909577 | E6: =+IF(A6<>"",(A6-Report!D$19)^2,"") -> 212374.1651 | T6: 39386495.2 | U6: 76179.93196
A7: 5333.87 | B7: 5350 | C7: 5332.63208 | D7: 17.36792008 | E7: =+IF(A7<>"",(A7-Report!D$19)^2,"") -> 245481.3207 | G7: Graph Table | V7: BF Limits
A8: 5342.72 | B8: 5350 | C8: 5341.483873 | D8: 8.516126603 | E8: =+IF(A8<>"",(A8-Report!D$19)^2,"") -> 236789.9885 | G8: Percent | U8: alpha1 | V8: =+Report!D17 -> 0.025
A9: 5356.23 | B9: 5350 | C9: 5354.996611 | D9: -4.99661124 | E9: =+IF(A9<>"",(A9-Report!D$19)^2,"") -> 223824.2871 | G9: of Range | H9: X | I9: Y-Hat | J9: (X-Xbar)2 | K9: Yutb | L9: Bound | M9: Reprod Bound | N9: Reprod Band | O9: Zero | P9: Test | U9: n | V9: =COUNT(A2:A999) -> 559
A10: 5358.29 | B10: 5350 | C10: 5357.057029 | D10: -7.057028706 | E10: =+IF(A10<>"",(A10-Report!D$19)^2,"") -> 221879.3557 | G10: 0 | H10: =MIN(A1:A999) -> 5073.57 | I10: =+Report!D$9+Report!D$10*H10 -> 5072.279329 | J10: =+(H10-Report!D$19)^2 -> 571174.2592 | K10: =+Report!D$9+Report!D$10*H10+Report!D$18*Report!D$14*SQRT(1/COUNT(A$2:A$999)+J10/Report!D$20)+Report!D$24 -> 5096.414087 | L10: =+K10-(Report!D$9+Report!D$10*H10) -> 24.13475814 | M10: 35 | N10: =+I10+M10 -> 5107.279329 | O10: 0 | P10: =IF(L10<M10,0,1) -> 0 | U10: XA Mean | V10: =AVERAGE(A2:A999) -> 5829.330716
A11: 5360.11 | B11: 5360 | C11: 5358.877398 | D11: 1.122602465 | E11: =+IF(A11<>"",(A11-Report!D$19)^2,"") -> 220168.0799 | G11: =+G10+0.025 -> 0.025 | H11: =H$10+G11*(H$50-H$10) -> 5108.5845 | I11: =+Report!D$9+Report!D$10*H11 -> 5107.300925 | J11: =+(H11-Report!D$19)^2 -> 519475.1072 | K11: =+Report!D$9+Report!D$10*H11+Report!D$18*Report!D$14*SQRT(1/COUNT(A$2:A$999)+J11/Report!D$20)+Report!D$24 -> 5131.283627 | L11: =+K11-(Report!D$9+Report!D$10*H11) -> 23.98270239 | M11: =+M10 -> 35 | N11: =+I11+M11 -> 5142.300925 | O11: 0 | P11: =IF(L11<M11,0,1) -> 0 | U11: Large Sx | V11: =SQRT(SUM(E2:E999)/V9) -> 265.3870716
A12: 5363.19 | B12: 5360 | C12: 5361.958022 | D12: -1.958021706 | E12: =+IF(A12<>"",(A12-Report!D$19)^2,"") -> 217287.1667 | G12: =+G11+0.025 -> 0.05 | H12: 5143.599 | I12: =+Report!D$9+Report!D$10*H12 -> 5142.322521 | J12: =+(H12-Report!D$19)^2 -> 470227.9857 | K12: =+Report!D$9+Report!D$10*H12+Report!D$18*Report!D$14*SQRT(1/COUNT(A$2:A$999)+J12/Report!D$20)+Report!D$24 -> 5166.154049 | L12: =+K12-(Report!D$9+Report!D$10*H12) -> 23.8315277 | M12: =+M11 -> 35 | N12: 5177.322521 | O12: 0 | P12: 0 | U12: XA Max | V12: =+MAX(A2:A999) -> 6474.15
A13: 5378.92 | B13: 5360 | C13: 5377.691209 | D13: -17.69120944 | E13: =+IF(A13<>"",(A13-Report!D$19)^2,"") -> 202869.8127 | G13: 0.075 | H13: 5178.6135 | I13: =+Report!D$9+Report!D$10*H13 -> 5177.344117 | J13: =+(H13-Report!D$19)^2 -> 423432.8946 | K13: =+Report!D$9+Report!D$10*H13+Report!D$18*Report!D$14*SQRT(1/COUNT(A$2:A$999)+J13/Report!D$20)+Report!D$24 -> 5201.025474 | L13: =+K13-(Report!D$9+Report!D$10*H13) -> 23.68135729 | M13: 35 | N13: 5212.344117 | O13: 0 | P13: 0 | U13: XA Min | V13: =MIN(A2:A999) -> 5073.57
A14: 5365.66 | B14: 5380 | C14: 5364.428522 | D14: 15.57147774 | E14: =+IF(A14<>"",(A14-Report!D$19)^2,"") -> 214990.5325 | G14: 0.1 | H14: 5213.628 | I14: =+Report!D$9+Report!D$10*H14 -> 5212.365712 | J14: =+(H14-Report!D$19)^2 -> 379089.834 | K14: =+Report!D$9+Report!D$10*H14+Report!D$18*Report!D$14*SQRT(1/COUNT(A$2:A$999)+J14/Report!D$20)+Report!D$24 -> 5235.89805 | L14: =+K14-(Report!D$9+Report!D$10*H14) -> 23.53233738 | M14: 35 | N14: 5247.365712 | O14: 0 | P14: 0 | U14: Z(XA) Max | V14: =+(V12-V10)/V11 -> 2.429731337 | W14: =SQRT(V9-1) -> 23.62202362 | X14: =ROUND(MIN(V14:W14),3) -> 2.43
A15: 5375.48 | B15: 5380 | C15: 5374.250512 | D15: 5.749487687 | E15: =+IF(A15<>"",(A15-Report!D$19)^2,"") -> 205980.472 | G15: 0.125 | H15: 5248.6425 | I15: =+Report!D$9+Report!D$10*H15 -> 5247.387308 | J15: =+(H15-Report!D$19)^2 -> 337198.8037 | K15: =+Report!D$9+Report!D$10*H15+Report!D$18*Report!D$14*SQRT(1/COUNT(A$2:A$999)+J15/Report!D$20)+Report!D$24 -> 5270.771951 | L15: =+K15-(Report!D$9+Report!D$10*H15) -> 23.38464256 | M15: 35 | N15: 5282.387308 | O15: 0 | P15: 0 | U15: Z(XA) Min | V15: =+(V13-V10)/V11 -> -2.847767644 | W15: =-W14 -> -23.62202362 | X15: =ROUND(MAX(V15:W15),3) -> -2.848
A16: 5383.99 | B16: 5380 | C16: 5382.762237 | D16: -2.762236891 | E16: =+IF(A16<>"",(A16-Report!D$19)^2,"") -> 198328.3529 | G16: 0.15 | H16: 5283.657 | I16: =+Report!D$9+Report!D$10*H16 -> 5282.408904 | J16: =+(H16-Report!D$19)^2 -> 297759.8039 | K16: =+Report!D$9+Report!D$10*H16+Report!D$18*Report!D$14*SQRT(1/COUNT(A$2:A$999)+J16/Report!D$20)+Report!D$24 -> 5305.647387 | L16: =+K16-(Report!D$9+Report!D$10*H16) -> 23.2384825 | M16: 35 | N16: 5317.408904 | O16: 0 | P16: 0 | U16: phi | V16: =ATAN(X14)-ATAN(X15) -> 2.413517162 | W16: =2*ATAN(SQRT((V9-1)/2)) -> 3.021998534 | X16: =ROUND(MIN(V16:W16),3) -> 2.414
A17: 5384.3 | B17: 5380 | C17: 5383.0723 | D17: -3.072299714 | E17: =+IF(A17<>"",(A17-Report!D$19)^2,"") -> 198052.3378 | G17: 0.175 | H17: 5318.6715 | I17: =+Report!D$9+Report!D$10*H17 -> 5317.4305 | J17: =+(H17-Report!D$19)^2 -> 260772.8344 | K17: =+Report!D$9+Report!D$10*H17+Report!D$18*Report!D$14*SQRT(1/COUNT(A$2:A$999)+J17/Report!D$20)+Report!D$24 -> 5340.52461 | L17: =+K17-(Report!D$9+Report!D$10*H17) -> 23.09411059 | M17: 35 | N17: 5352.4305 | O17: 0 | P17: 0 | U17: B.F. Constant | V17: 2.476
A18: 5376.19 | B18: 5390 | C18: 5374.960656 | D18: 15.0393438 | E18: =+IF(A18<>"",(A18-Report!D$19)^2,"") -> 205336.5081 | G18: 0.2 | H18: 5353.686 | I18: =+Report!D$9+Report!D$10*H18 -> 5352.452096 | J18: =+(H18-Report!D$19)^2 -> 226237.8954 | K18: =+Report!D$9+Report!D$10*H18+Report!D$18*Report!D$14*SQRT(1/COUNT(A$2:A$999)+J18/Report!D$20)+Report!D$24 -> 5375.403931 | L18: =+K18-(Report!D$9+Report!D$10*H18) -> 22.95183498 | M18: 35 | N18: 5387.452096 | O18: 0 | P18: 0
A19: 5378.95 | B19: 5390 | C19: 5377.721216 | D19: 12.27878448 | E19: =+IF(A19<>"",(A19-Report!D$19)^2,"") -> 202842.789 | G19: 0.225 | H19: 5388.7005 | I19: =+Report!D$9+Report!D$10*H19 -> 5387.473691 | J19: =+(H19-Report!D$19)^2 -> 194154.9869 | K19: =+Report!D$9+Report!D$10*H19+Report!D$18*Report!D$14*SQRT(1/COUNT(A$2:A$999)+J19/Report!D$20)+Report!D$24 -> 5410.285724 | L19: =+K19-(Report!D$9+Report!D$10*H19) -> 22.81203262 | M19: 35 | N19: 5422.473691 | O19: 0 | P19: 0
A20: 5392.21 | B20: 5390 | C20: 5390.983903 | D20: -0.9839027002 | E20: =+IF(A20<>"",(A20-Report!D$19)^2,"") -> 191074.52 | G20: 0.25 | H20: 5423.715 | I20: =+Report!D$9+Report!D$10*H20 -> 5422.495287 | J20: =+(H20-Report!D$19)^2 -> 164524.1087 | K20: =+Report!D$9+Report!D$10*H20+Report!D$18*Report!D$14*SQRT(1/COUNT(A$2:A$999)+J20/Report!D$20)+Report!D$24 -> 5445.170455 | L20: =+K20-(Report!D$9+Report!D$10*H20) -> 22.67516729 | M20: 35 | N20: 5457.495287 | O20: 0 | P20: 0
A21: 5386.54 | B21: 5400 | C21: 5385.312754 | D21: 14.68724634 | E21: =+IF(A21<>"",(A21-Report!D$19)^2,"") -> 196063.6178 | G21: 0.275 | H21: 5458.7295 | I21: =+Report!D$9+Report!D$10*H21 -> 5457.516883 | J21: =+(H21-Report!D$19)^2 -> 137345.261 | K21: =+Report!D$9+Report!D$10*H21+Report!D$18*Report!D$14*SQRT(1/COUNT(A$2:A$999)+J21/Report!D$20)+Report!D$24 -> 5480.058695 | L21: =+K21-(Report!D$9+Report!D$10*H21) -> 22.54181235 | M21: 35 | N21: 5492.516883 | O21: 0 | P21: 0
A22: 5393.34 | B22: 5400 | C22: 5392.114132 | D22: 7.885868302 | E22: =+IF(A22<>"",(A22-Report!D$19)^2,"") -> 190087.9041 | G22: 0.3 | H22: 5493.744 | I22: =+Report!D$9+Report!D$10*H22 -> 5492.538479 | J22: =+(H22-Report!D$19)^2 -> 112618.4437 | K22: =+Report!D$9+Report!D$10*H22+Report!D$18*Report!D$14*SQRT(1/COUNT(A$2:A$999)+J22/Report!D$20)+Report!D$24 -> 5514.951158 | L22: =+K22-(Report!D$9+Report!D$10*H22) -> 22.4126792 | M22: 35 | N22: 5527.538479 | O22: 0 | P22: 0
A23: 5404.19 | B23: 5400 | C23: 5402.96633 | D23: -2.966330485 | E23: =+IF(A23<>"",(A23-Report!D$19)^2,"") -> 180744.628 | G23: 0.325 | H23: 5528.7585 | I23: =+Report!D$9+Report!D$10*H23 -> 5527.560075 | J23: =+(H23-Report!D$19)^2 -> 90343.65677 | K23: =+Report!D$9+Report!D$10*H23+Report!D$18*Report!D$14*SQRT(1/COUNT(A$2:A$999)+J23/Report!D$20)+Report!D$24 -> 5549.848727 | L23: =+K23-(Report!D$9+Report!D$10*H23) -> 22.28865193 | M23: 35 | N23: 5562.560075 | O23: 0 | P23: 0
A24: 5426.57 | B24: 5410 | C24: 5425.350866 | D24: -15.35086586 | E24: =+IF(A24<>"",(A24-Report!D$19)^2,"") -> 162216.194 | G24: 0.35 | H24: 5563.773 | I24: =+Report!D$9+Report!D$10*H24 -> 5562.58167 | J24: =+(H24-Report!D$19)^2 -> 70520.9003 | K24: =+Report!D$9+Report!D$10*H24+Report!D$18*Report!D$14*SQRT(1/COUNT(A$2:A$999)+J24/Report!D$20)+Report!D$24 -> 5584.752498 | L24: =+K24-(Report!D$9+Report!D$10*H24) -> 22.17082742 | M24: 35 | N24: 5597.58167 | O24: 0 | P24: 0
A25: 5406.04 | B25: 5420 | C25: 5404.816705 | D25: 15.18329461 | E25: =+IF(A25<>"",(A25-Report!D$19)^2,"") -> 179175.0299 | G25: 0.375 | H25: 5598.7875 | I25: =+Report!D$9+Report!D$10*H25 -> 5597.603266 | J25: =+(H25-Report!D$19)^2 -> 53150.17424 | K25: =+Report!D$9+Report!D$10*H25+Report!D$18*Report!D$14*SQRT(1/COUNT(A$2:A$999)+J25/Report!D$20)+Report!D$24 -> 5619.663824 | L25: =+K25-(Report!D$9+Report!D$10*H25) -> 22.0605577 | M25: 35 | N25: 5632.603266 | O25: 0 | P25: 0
A26: 5411.43 | B26: 5420 | C26: 5410.207798 | D26: 9.792202307 | E26: =+IF(A26<>"",(A26-Report!D$19)^2,"") -> 174641.0081 | G26: 0.4 | H26: 5633.802 | I26: =+Report!D$9+Report!D$10*H26 -> 5632.624862 | J26: =+(H26-Report!D$19)^2 -> 38231.47861 | K26: =+Report!D$9+Report!D$10*H26+Report!D$18*Report!D$14*SQRT(1/COUNT(A$2:A$999)+J26/Report!D$20)+Report!D$24 -> 5654.584349 | L26: =+K26-(Report!D$9+Report!D$10*H26) -> 21.95948654 | M26: 35 | N26: 5667.624862 | O26: 0 | P26: 0
A27: 5416.91 | B27: 5420 | C27: 5415.688908 | D27: 4.311091767 | E27: =+IF(A27<>"",(A27-Report!D$19)^2,"") -> 170090.8466 | G27: 0.425 | H27: 5668.8165 | I27: =+Report!D$9+Report!D$10*H27 -> 5667.646458 | J27: =+(H27-Report!D$19)^2 -> 25764.8134 | K27: =+Report!D$9+Report!D$10*H27+Report!D$18*Report!D$14*SQRT(1/COUNT(A$2:A$999)+J27/Report!D$20)+Report!D$24 -> 5689.516022 | L27: =+K27-(Report!D$9+Report!D$10*H27) -> 21.86956391 | M27: 35 | N27: 5702.646458 | O27: 0 | P27: 0
A28: 5421.31 | B28: 5420 | C28: 5420.0898 | D28: -0.0897999064 | E28: =+IF(A28<>"",(A28-Report!D$19)^2,"") -> 166480.9043 | G28: 0.45 | H28: 5703.831 | I28: =+Report!D$9+Report!D$10*H28 -> 5702.668054 | J28: =+(H28-Report!D$19)^2 -> 15750.17861 | K28: =+Report!D$9+Report!D$10*H28+Report!D$18*Report!D$14*SQRT(1/COUNT(A$2:A$999)+J28/Report!D$20)+Report!D$24 -> 5724.461065 | L28: =+K28-(Report!D$9+Report!D$10*H28) -> 21.79301159 | M28: 35 | N28: 5737.668054 | O28: 0 | P28: 0
A29: 5422.28 | B29: 5420 | C29: 5421.059996 | D29: -1.05999648 | E29: =+IF(A29<>"",(A29-Report!D$19)^2,"") -> 165690.285 | G29: 0.475 | H29: 5738.8455 | I29: =+Report!D$9+Report!D$10*H29 -> 5737.689649 | J29: =+(H29-Report!D$19)^2 -> 8187.574236 | K29: =+Report!D$9+Report!D$10*H29+Report!D$18*Report!D$14*SQRT(1/COUNT(A$2:A$999)+J29/Report!D$20)+Report!D$24 -> 5759.421854 | L29: =+K29-(Report!D$9+Report!D$10*H29) -> 21.73220481 | M29: 35 | N29: 5772.689649 | O29: 0 | P29: 0
A30: 5429.95 | B30: 5420 | C30: 5428.731551 | D30: -8.731550829 | E30: =+IF(A30<>"",(A30-Report!D$19)^2,"") -> 159504.956 | G30: 0.5 | H30: 5773.86 | I30: =+Report!D$9+Report!D$10*H30 -> 5772.711245 | J30: =+(H30-Report!D$19)^2 -> 3077.000285 | K30: =+Report!D$9+Report!D$10*H30+Report!D$18*Report!D$14*SQRT(1/COUNT(A$2:A$999)+J30/Report!D$20)+Report!D$24 -> 5794.400687 | L30: =+K30-(Report!D$9+Report!D$10*H30) -> 21.68944132 | M30: 35 | N30: 5807.711245 | O30: 0 | P30: 0
A31: 5441.75 | B31: 5420 | C31: 5440.533942 | D31: -20.53394214 | E31: =+IF(A31<>"",(A31-Report!D$19)^2,"") -> 150218.8111 | G31: 0.525 | H31: 5808.8745 | I31: =+Report!D$9+Report!D$10*H31 -> 5807.732841 | J31: =+(H31-Report!D$19)^2 -> 418.4567552 | K31: =+Report!D$9+Report!D$10*H31+Report!D$18*Report!D$14*SQRT(1/COUNT(A$2:A$999)+J31/Report!D$20)+Report!D$24 -> 5829.399448 | L31: =+K31-(Report!D$9+Report!D$10*H31) -> 21.66660704 | M31: 35 | N31: 5842.732841 | O31: 0 | P31: 0
A32: 5396.6 | B32: 5430 | C32: 5395.374792 | D32: 34.62520765 | E32: =+IF(A32<>"",(A32-Report!D$19)^2,"") -> 187255.8722 | G32: 0.55 | H32: 5843.889 | I32: =+Report!D$9+Report!D$10*H32 -> 5842.754437 | J32: =+(H32-Report!D$19)^2 -> 211.9436457 | K32: =+Report!D$9+Report!D$10*H32+Report!D$18*Report!D$14*SQRT(1/COUNT(A$2:A$999)+J32/Report!D$20)+Report!D$24 -> 5864.419252 | L32: =+K32-(Report!D$9+Report!D$10*H32) -> 21.6648155 | M32: 35 | N32: 5877.754437 | O32: 0 | P32: 0
A33: 5417.15 | B33: 5430 | C33: 5415.928957 | D33: 14.07104313 | E33: =+IF(A33<>"",(A33-Report!D$19)^2,"") -> 169892.9423 | G33: 0.575 | H33: 5878.9035 | I33: =+Report!D$9+Report!D$10*H33 -> 5877.776033 | J33: =+(H33-Report!D$19)^2 -> 2457.460957 | K33: =+Report!D$9+Report!D$10*H33+Report!D$18*Report!D$14*SQRT(1/COUNT(A$2:A$999)+J33/Report!D$20)+Report!D$24 -> 5899.46019 | L33: =+K33-(Report!D$9+Report!D$10*H33) -> 21.68415749 | M33: 35 | N33: 5912.776033 | O33: 0 | P33: 0
A34: 5427.51 | B34: 5430 | C34: 5426.291056 | D34: 3.708943644 | E34: =+IF(A34<>"",(A34-Report!D$19)^2,"") -> 161459.8875 | G34: 0.6 | H34: 5913.918 | I34: =+Report!D$9+Report!D$10*H34 -> 5912.797628 | J34: =+(H34-Report!D$19)^2 -> 7155.008688 | K34: =+Report!D$9+Report!D$10*H34+Report!D$18*Report!D$14*SQRT(1/COUNT(A$2:A$999)+J34/Report!D$20)+Report!D$24 -> 5934.521308 | L34: =+K34-(Report!D$9+Report!D$10*H34) -> 21.72367935 | M34: 35 | N34: 5947.797628 | O34: 0 | P34: 0
A35: 5429.21 | B35: 5430 | C35: 5427.991401 | D35: 2.008599134 | E35: =+IF(A35<>"",(A35-Report!D$19)^2,"") -> 160096.587 | G35: 0.625 | H35: 5948.9325 | I35: =+Report!D$9+Report!D$10*H35 -> 5947.819224 | J35: =+(H35-Report!D$19)^2 -> 14304.58684 | K35: =+Report!D$9+Report!D$10*H35+Report!D$18*Report!D$14*SQRT(1/COUNT(A$2:A$999)+J35/Report!D$20)+Report!D$24 -> 5969.600825 | L35: =+K35-(Report!D$9+Report!D$10*H35) -> 21.78160117 | M35: 35 | N35: 5982.819224 | O35: 0 | P35: 0
A36: 5432.59 | B36: 5430 | C36: 5431.372086 | D36: -1.372085834 | E36: =+IF(A36<>"",(A36-Report!D$19)^2,"") -> 157403.1954 | G36: 0.65 | H36: 5983.947 | I36: =+Report!D$9+Report!D$10*H36 -> 5982.84082 | J36: =+(H36-Report!D$19)^2 -> 23906.19541 | K36: =+Report!D$9+Report!D$10*H36+Report!D$18*Report!D$14*SQRT(1/COUNT(A$2:A$999)+J36/Report!D$20)+Report!D$24 -> 6004.696489 | L36: =+K36-(Report!D$9+Report!D$10*H36) -> 21.85566904 | M36: 35 | N36: 6017.84082 | O36: 0 | P36: 0
A37: 5433.76 | B37: 5430 | C37: 5432.542323 | D37: -2.542322938 | E37: =+IF(A37<>"",(A37-Report!D$19)^2,"") -> 156476.191 | G37: 0.675 | H37: 6018.9615 | I37: =+Report!D$9+Report!D$10*H37 -> 6017.862416 | J37: =+(H37-Report!D$19)^2 -> 35959.83441 | K37: =+Report!D$9+Report!D$10*H37+Report!D$18*Report!D$14*SQRT(1/COUNT(A$2:A$999)+J37/Report!D$20)+Report!D$24 -> 6039.805917 | L37: =+K37-(Report!D$9+Report!D$10*H37) -> 21.94350136 | M37: 35 | N37: 6052.862416 | O37: 0 | P37: 0
A38: 5435.37 | B38: 5430 | C38: 5434.152649 | D38: -4.152649209 | E38: =+IF(A38<>"",(A38-Report!D$19)^2,"") -> 155205.0454 | G38: 0.7 | H38: 6053.976 | I38: =+Report!D$9+Report!D$10*H38 -> 6052.884012 | J38: =+(H38-Report!D$19)^2 -> 50465.50382 | K38: =+Report!D$9+Report!D$10*H38+Report!D$18*Report!D$14*SQRT(1/COUNT(A$2:A$999)+J38/Report!D$20)+Report!D$24 -> 6074.926851 | L38: =+K38-(Report!D$9+Report!D$10*H38) -> 22.04283941 | M38: 35 | N38: 6087.884012 | O38: 0 | P38: 0
A39: 5440.46 | B39: 5430 | C39: 5439.243681 | D39: -9.243680714 | E39: =+IF(A39<>"",(A39-Report!D$19)^2,"") -> 151220.4334 | G39: 0.725 | H39: 6088.9905 | I39: =+Report!D$9+Report!D$10*H39 -> 6087.905607 | J39: =+(H39-Report!D$19)^2 -> 67423.20365 | K39: =+Report!D$9+Report!D$10*H39+Report!D$18*Report!D$14*SQRT(1/COUNT(A$2:A$999)+J39/Report!D$20)+Report!D$24 -> 6110.057291 | L39: =+K39-(Report!D$9+Report!D$10*H39) -> 22.15168318 | M39: 35 | N39: 6122.905607 | O39: 0 | P39: 0
A40: 5429.97 | B40: 5440 | C40: 5428.751555 | D40: 11.24844512 | E40: =+IF(A40<>"",(A40-Report!D$19)^2,"") -> 159488.9811 | G40: 0.75 | H40: 6124.005 | I40: =+Report!D$9+Report!D$10*H40 -> 6122.927203 | J40: =+(H40-Report!D$19)^2 -> 86832.93391 | K40: =+Report!D$9+Report!D$10*H40+Report!D$18*Report!D$14*SQRT(1/COUNT(A$2:A$999)+J40/Report!D$20)+Report!D$24 -> 6145.195541 | L40: =+K40-(Report!D$9+Report!D$10*H40) -> 22.2683374 | M40: 35 | N40: 6157.927203 | O40: 0 | P40: 0
A41: 5430.9 | B41: 5440 | C41: 5429.681743 | D41: 10.31825665 | E41: =+IF(A41<>"",(A41-Report!D$19)^2,"") -> 158747.0351 | G41: 0.775 | H41: 6159.0195 | I41: =+Report!D$9+Report!D$10*H41 -> 6157.948799 | J41: =+(H41-Report!D$19)^2 -> 108694.6946 | K41: =+Report!D$9+Report!D$10*H41+Report!D$18*Report!D$14*SQRT(1/COUNT(A$2:A$999)+J41/Report!D$20)+Report!D$24 -> 6180.340202 | L41: =+K41-(Report!D$9+Report!D$10*H41) -> 22.39140311 | M41: 35 | N41: 6192.948799 | O41: 0 | P41: 0
A42: 5433.93 | B42: 5440 | C42: 5432.712357 | D42: 7.287642611 | E42: =+IF(A42<>"",(A42-Report!D$19)^2,"") -> 156341.7259 | G42: 0.8 | H42: 6194.034 | I42: =+Report!D$9+Report!D$10*H42 -> 6192.970395 | J42: =+(H42-Report!D$19)^2 -> 133008.4857 | K42: =+Report!D$9+Report!D$10*H42+Report!D$18*Report!D$14*SQRT(1/COUNT(A$2:A$999)+J42/Report!D$20)+Report!D$24 -> 6215.490138 | L42: =+K42-(Report!D$9+Report!D$10*H42) -> 22.51974341 | M42: 35 | N42: 6227.970395 | O42: 0 | P42: 0
A43: 5446.59 | B43: 5440 | C43: 5445.374923 | D43: -5.374922978 | E43: =+IF(A43<>"",(A43-Report!D$19)^2,"") -> 146490.4554 | G43: 0.825 | H43: 6229.0485 | I43: =+Report!D$9+Report!D$10*H43 -> 6227.991991 | J43: =+(H43-Report!D$19)^2 -> 159774.3072 | K43: =+Report!D$9+Report!D$10*H43+Report!D$18*Report!D$14*SQRT(1/COUNT(A$2:A$999)+J43/Report!D$20)+Report!D$24 -> 6250.644432 | L43: =+K43-(Report!D$9+Report!D$10*H43) -> 22.65244129 | M43: 35 | N43: 6262.991991 | O43: 0 | P43: 0
A44: 5462.47 | B44: 5440 | C44: 5461.258141 | D44: -21.25814111 | E44: =+IF(A44<>"",(A44-Report!D$19)^2,"") -> 134586.7846 | G44: 0.85 | H44: 6264.063 | I44: =+Report!D$9+Report!D$10*H44 -> 6263.013586 | J44: =+(H44-Report!D$19)^2 -> 188992.1591 | K44: =+Report!D$9+Report!D$10*H44+Report!D$18*Report!D$14*SQRT(1/COUNT(A$2:A$999)+J44/Report!D$20)+Report!D$24 -> 6285.802345 | L44: =+K44-(Report!D$9+Report!D$10*H44) -> 22.78875885 | M44: 35 | N44: 6298.013586 | O44: 0 | P44: 0
A45: 5443.95 | B45: 5450 | C45: 5442.734388 | D45: 7.265612027 | E45: =+IF(A45<>"",(A45-Report!D$19)^2,"") -> 148518.2959 | G45: 0.875 | H45: 6299.0775 | I45: =+Report!D$9+Report!D$10*H45 -> 6298.035182 | J45: =+(H45-Report!D$19)^2 -> 220662.0415 | K45: =+Report!D$9+Report!D$10*H45+Report!D$18*Report!D$14*SQRT(1/COUNT(A$2:A$999)+J45/Report!D$20)+Report!D$24 -> 6320.963284 | L45: =+K45-(Report!D$9+Report!D$10*H45) -> 22.92810164 | M45: 35 | N45: 6333.035182 | O45: 0 | P45: 0
A46: 5444.6 | B46: 5450 | C46: 5443.38452 | D46: 6.615480302 | E46: =+IF(A46<>"",(A46-Report!D$19)^2,"") -> 148017.7235 | G46: 0.9 | H46: 6334.092 | I46: =+Report!D$9+Report!D$10*H46 -> 6333.056778 | J46: =+(H46-Report!D$19)^2 -> 254783.9543 | K46: =+Report!D$9+Report!D$10*H46+Report!D$18*Report!D$14*SQRT(1/COUNT(A$2:A$999)+J46/Report!D$20)+Report!D$24 -> 6356.126767 | L46: =+K46-(Report!D$9+Report!D$10*H46) -> 23.06998917 | M46: 35 | N46: 6368.056778 | O46: 0 | P46: 0
A47: 5449.36 | B47: 5450 | C47: 5448.145484 | D47: 1.854515673 | E47: =+IF(A47<>"",(A47-Report!D$19)^2,"") -> 144377.7447 | G47: 0.925 | H47: 6369.1065 | I47: =+Report!D$9+Report!D$10*H47 -> 6368.078374 | J47: =+(H47-Report!D$19)^2 -> 291357.8975 | K47: =+Report!D$9+Report!D$10*H47+Report!D$18*Report!D$14*SQRT(1/COUNT(A$2:A$999)+J47/Report!D$20)+Report!D$24 -> 6391.292405 | L47: =+K47-(Report!D$9+Report!D$10*H47) -> 23.21403124 | M47: 35 | N47: 6403.078374 | O47: 0 | P47: 0
A48: 5452.88 | B48: 5450 | C48: 5451.666198 | D48: -1.666197666 | E48: =+IF(A48<>"",(A48-Report!D$19)^2,"") -> 141715.1412 | G48: 0.95 | H48: 6404.121 | I48: =+Report!D$9+Report!D$10*H48 -> 6403.09997 | J48: =+(H48-Report!D$19)^2 -> 330383.8711 | K48: =+Report!D$9+Report!D$10*H48+Report!D$18*Report!D$14*SQRT(1/COUNT(A$2:A$999)+J48/Report!D$20)+Report!D$24 -> 6426.459879 | L48: =+K48-(Report!D$9+Report!D$10*H48) -> 23.35990919 | M48: 35 | N48: 6438.09997 | O48: 0 | P48: 0
A49: 5458.81 | B49: 5450 | C49: 5457.597399 | D49: -7.597399399 | E49: =+IF(A49<>"",(A49-Report!D$19)^2,"") -> 137285.6007 | G49: 0.975 | H49: 6439.1355 | I49: =+Report!D$9+Report!D$10*H49 -> 6438.121565 | J49: =+(H49-Report!D$19)^2 -> 371861.8751 | K49: =+Report!D$9+Report!D$10*H49+Report!D$18*Report!D$14*SQRT(1/COUNT(A$2:A$999)+J49/Report!D$20)+Report!D$24 -> 6461.628927 | L49: =+K49-(Report!D$9+Report!D$10*H49) -> 23.50736125 | M49: 35 | N49: 6473.121565 | O49: 0 | P49: 0
A50: 5459.02 | B50: 5450 | C50: 5457.807442 | D50: -7.807441956 | E50: =+IF(A50<>"",(A50-Report!D$19)^2,"") -> 137130.0261 | G50: 1 | H50: =MAX(A1:A999) -> 6474.15 | I50: =+Report!D$9+Report!D$10*H50 -> 6473.143161 | J50: =+(H50-Report!D$19)^2 -> 415791.9096 | K50: =+Report!D$9+Report!D$10*H50+Report!D$18*Report!D$14*SQRT(1/COUNT(A$2:A$999)+J50/Report!D$20)+Report!D$24 -> 6496.799332 | L50: =+K50-(Report!D$9+Report!D$10*H50) -> 23.65617104 | M50: 35 | N50: 6508.143161 | O50: 0 | P50: 0
A51: 5462.24 | B51: 5450 | C51: 5461.028094 | D51: -11.0280945 | E51: =+IF(A51<>"",(A51-Report!D$19)^2,"") -> 134755.5935
A52: 5443.46 | B52: 5460 | C52: 5442.244289 | D52: 17.75571133 | E52: =+IF(A52<>"",(A52-Report!D$19)^2,"") -> 148896.2091
A53: 5449.47 | B53: 5460 | C53: 5448.255507 | D53: 11.74449338 | E53: =+IF(A53<>"",(A53-Report!D$19)^2,"") -> 144294.1632
A54: 5450.31 | B54: 5460 | C54: 5449.095677 | D54: 10.90432315 | E54: =+IF(A54<>"",(A54-Report!D$19)^2,"") -> 143656.7028
A55: 5453.07 | B55: 5460 | C55: 5451.856236 | D55: 8.14376383 | E55: =+IF(A55<>"",(A55-Report!D$19)^2,"") -> 141572.1261
A56: 5464.35 | B56: 5460 | C56: 5463.138522 | D56: -3.138522097 | E56: =+IF(A56<>"",(A56-Report!D$19)^2,"") -> 133210.9227
A57: 5473.59 | B57: 5460 | C57: 5472.380395 | D57: -12.38039461 | E57: =+IF(A57<>"",(A57-Report!D$19)^2,"") -> 126551.4567
A58: 5476.52 | B58: 5460 | C58: 5475.310988 | D58: -15.31098839 | E58: =+IF(A58<>"",(A58-Report!D$19)^2,"") -> 124475.401
A59: 5490.68 | B59: 5460 | C59: 5489.473858 | D59: -29.47385795 | E59: =+IF(A59<>"",(A59-Report!D$19)^2,"") -> 114684.3072
A60: 5473.4 | B60: 5470 | C60: 5472.190356 | D60: -2.190356108 | E60: =+IF(A60<>"",(A60-Report!D$19)^2,"") -> 126686.6743
A61: 5475.31 | B61: 5470 | C61: 5474.100743 | D61: -4.100743176 | E61: =+IF(A61<>"",(A61-Report!D$19)^2,"") -> 125330.667
A62: 5480.58 | B62: 5470 | C62: 5479.371811 | D62: -9.371811158 | E62: =+IF(A62<>"",(A62-Report!D$19)^2,"") -> 121627.0616
A63: 5481.8 | B63: 5470 | C63: 5480.592058 | D63: -10.59205839 | E63: =+IF(A63<>"",(A63-Report!D$19)^2,"") -> 120777.5983
A64: 5465.21 | B64: 5480 | C64: 5463.998696 | D64: 16.00130362 | E64: =+IF(A64<>"",(A64-Report!D$19)^2,"") -> 132583.8955
A65: 5475.33 | B65: 5480 | C65: 5474.120747 | D65: 5.879252771 | E65: =+IF(A65<>"",(A65-Report!D$19)^2,"") -> 125316.5066
A66: 5476.71 | B66: 5480 | C66: 5475.501027 | D66: 4.49897311 | E66: =+IF(A66<>"",(A66-Report!D$19)^2,"") -> 124341.369
A67: 5477.21 | B67: 5480 | C67: 5476.001128 | D67: =+IF(B67<>"",B67-C67,"") -> 3.998871783 | E67: =+IF(A67<>"",(A67-Report!D$19)^2,"") -> 123988.9983
A68: 5484.85 | B68: 5480 | C68: 5483.642676 | D68: -3.642676487 | E68: =+IF(A68<>"",(A68-Report!D$19)^2,"") -> 118666.9634
A69: 5485.68 | B69: 5480 | C69: 5484.472845 | D69: -4.472844689 | E69: =+IF(A69<>"",(A69-Report!D$19)^2,"") -> 118095.8143
A70: 5479.68 | B70: 5490 | C70: 5478.471629 | D70: 11.52837123 | E70: =+IF(A70<>"",(A70-Report!D$19)^2,"") -> 122255.6229
A71: 5485.92 | B71: 5490 | C71: 5484.712893 | D71: 5.287106675 | E71: =+IF(A71<>"",(A71-Report!D$19)^2,"") -> 117930.9196
A72: 5486.16 | B72: 5490 | C72: 5484.952942 | D72: 5.047058038 | E72: =+IF(A72<>"",(A72-Report!D$19)^2,"") -> 117766.14
A73: 5486.68 | B73: 5490 | C73: 5485.473047 | D73: 4.526952658 | E73: =+IF(A73<>"",(A73-Report!D$19)^2,"") -> 117409.5129
A74: 5490.26 | B74: 5490 | C74: 5489.053773 | D74: 0.94622716 | E74: =+IF(A74<>"",(A74-Report!D$19)^2,"") -> 114968.9502
A75: 5492.1 | B75: 5490 | C75: 5490.894146 | D75: -0.8941457218 | E75: =+IF(A75<>"",(A75-Report!D$19)^2,"") -> 113724.5555
A76: 5492.71 | B76: 5490 | C76: 5491.504269 | D76: -1.50426934 | E76: =+IF(A76<>"",(A76-Report!D$19)^2,"") -> 113313.5061
A77: 5493.78 | B77: 5490 | C77: 5492.574486 | D77: -2.574486179 | E77: =+IF(A77<>"",(A77-Report!D$19)^2,"") -> 112594.2827
A78: 5493.92 | B78: 5490 | C78: 5492.714515 | D78: -2.71451455 | E78: =+IF(A78<>"",(A78-Report!D$19)^2,"") -> 112500.3481
A79: 5496.82 | B79: 5490 | C79: 5495.615102 | D79: -5.615102245 | E79: =+IF(A79<>"",(A79-Report!D$19)^2,"") -> 110563.376
A80: 5487.61 | B80: 5500 | C80: 5486.403236 | D80: 13.59676419 | E80: =+IF(A80<>"",(A80-Report!D$19)^2,"") -> 116773.0474
A81: 5496.08 | B81: 5500 | C81: 5494.874952 | D81: 5.125047719 | E81: =+IF(A81<>"",(A81-Report!D$19)^2,"") -> 111056.0394
A82: 5496.27 | B82: 5500 | C82: 5495.064991 | D82: 4.935009215 | E82: =+IF(A82<>"",(A82-Report!D$19)^2,"") -> 110929.4403
A83: 5498.75 | B83: 5500 | C83: 5497.545493 | D83: 2.454506635 | E83: =+IF(A83<>"",(A83-Report!D$19)^2,"") -> 109283.6095
A84: 5499.8 | B84: 5500 | C84: 5498.595706 | D84: 1.404293849 | E84: =+IF(A84<>"",(A84-Report!D$19)^2,"") -> 108590.4925
A85: 5500.33 | B85: 5500 | C85: 5499.125814 | D85: 0.8741864429 | E85: =+IF(A85<>"",(A85-Report!D$19)^2,"") -> 108241.4708
A86: 5504.95 | B86: 5500 | C86: 5503.74675 | D86: -3.746749815 | E86: =+IF(A86<>"",(A86-Report!D$19)^2,"") -> 105222.8486
A87: 5507.87 | B87: 5500 | C87: 5506.667342 | D87: -6.667341562 | E87: =+IF(A87<>"",(A87-Report!D$19)^2,"") -> 103336.9917
A88: 5518.47 | B88: 5500 | C88: 5517.26949 | D88: -17.26948968 | E88: =+IF(A88<>"",(A88-Report!D$19)^2,"") -> 96634.38448
A89: 5526.25 | B89: 5500 | C89: 5525.051066 | D89: -25.05106633 | E89: =+IF(A89<>"",(A89-Report!D$19)^2,"") -> 91857.92015
A90: 5494.19 | B90: 5510 | C90: 5492.984569 | D90: 17.01543073 | E90: =+IF(A90<>"",(A90-Report!D$19)^2,"") -> 112319.2992
A91: 5502.26 | B91: 5510 | C91: 5501.056205 | D91: 8.943795322 | E91: =+IF(A91<>"",(A91-Report!D$19)^2,"") -> 106975.253
A92: 5517.06 | B92: 5510 | C92: 5515.859204 | D92: -5.859203944 | E92: =+IF(A92<>"",(A92-Report!D$19)^2,"") -> 97512.9998
A93: 5503 | B93: 5520 | C93: 5501.796355 | D93: 18.20364536 | E93: =+IF(A93<>"",(A93-Report!D$19)^2,"") -> 106491.7359
A94: 5516.65 | B94: 5520 | C94: 5515.449121 | D94: 4.550879144 | E94: =+IF(A94<>"",(A94-Report!D$19)^2,"") -> 97769.22989
A95: 5517.43 | B95: 5520 | C95: 5516.229279 | D95: 3.770721074 | E95: =+IF(A95<>"",(A95-Report!D$19)^2,"") -> 97282.05637
A96: 5521.84 | B96: 5520 | C96: 5520.640173 | D96: -0.640172626 | E96: =+IF(A96<>"",(A96-Report!D$19)^2,"") -> 94550.54016
A97: 5522.72 | B97: 5520 | C97: 5521.520351 | D97: -1.520350961 | E97: =+IF(A97<>"",(A97-Report!D$19)^2,"") -> 94010.1309
A98: 5524.78 | B98: 5520 | C98: 5523.580768 | D98: -3.580768426 | E98: =+IF(A98<>"",(A98-Report!D$19)^2,"") -> 92751.13835
A99: 5526.36 | B99: 5520 | C99: 5525.161089 | D99: -5.161088618 | E99: =+IF(A99<>"",(A99-Report!D$19)^2,"") -> 91791.25449
A100: 5527.25 | B100: 5520 | C100: 5526.051269 | D100: -6.051268979 | E100: =+IF(A100<>"",(A100-Report!D$19)^2,"") -> 91252.75872
A101: 5530.85 | B101: 5520 | C101: 5529.651999 | D101: -9.651998531 | E101: =+IF(A101<>"",(A101-Report!D$19)^2,"") -> 89090.73756
A102: 5531.83 | B102: 5520 | C102: 5530.632197 | D102: -10.63219713 | E102: =+IF(A102<>"",(A102-Report!D$19)^2,"") -> 88506.67576
A103: 5532.41 | B103: 5520 | C103: 5531.212315 | D103: -11.21231467 | E103: =+IF(A103<>"",(A103-Report!D$19)^2,"") -> 88161.91133
A104: 5529.1 | B104: 5530 | C104: 5527.901644 | D104: 2.098356112 | E104: =+IF(A104<>"",(A104-Report!D$19)^2,"") -> 90138.48257
A105: 5542.64 | B105: 5530 | C105: 5541.444388 | D105: -11.44438781 | E105: =+IF(A105<>"",(A105-Report!D$19)^2,"") -> 82191.56639
A106: 5545.99 | B106: 5530 | C106: 5544.795067 | D106: -14.7950667 | E106: =+IF(A106<>"",(A106-Report!D$19)^2,"") -> 80281.9611
A107: 5523.61 | B107: 5540 | C107: 5522.410531 | D107: 17.58946868 | E107: =+IF(A107<>"",(A107-Report!D$19)^2,"") -> 93465.15592
A108: 5541.33 | B108: 5540 | C108: 5540.134122 | D108: -0.1341223356 | E108: =+IF(A108<>"",(A108-Report!D$19)^2,"") -> 82944.41217
A109: 5541.97 | B109: 5540 | C109: 5540.774252 | D109: -0.7742520336 | E109: =+IF(A109<>"",(A109-Report!D$19)^2,"") -> 82576.18085
A110: 5542.67 | B110: 5540 | C110: 5541.474394 | D110: -1.474393891 | E110: =+IF(A110<>"",(A110-Report!D$19)^2,"") -> 82174.36585
A111: 5546.65 | B111: 5540 | C111: 5545.4552 | D111: -5.45520045 | E111: =+IF(A111<>"",(A111-Report!D$19)^2,"") -> 79908.38695
A112: 5550.84 | B112: 5540 | C112: 5549.64605 | D112: -9.646049567 | E112: =+IF(A112<>"",(A112-Report!D$19)^2,"") -> 77557.07866
A113: 5553.63 | B113: 5540 | C113: 5552.436615 | D113: -12.43661497 | E113: =+IF(A113<>"",(A113-Report!D$19)^2,"") -> 76010.88456
A114: 5539.88 | B114: 5550 | C114: 5538.683828 | D114: 11.31617151 | E114: =+IF(A114<>"",(A114-Report!D$19)^2,"") -> 83781.71674
A115: 5545.95 | B115: 5550 | C115: 5544.755059 | D115: 5.244941407 | E115: =+IF(A115<>"",(A115-Report!D$19)^2,"") -> 80304.62995
A116: 5551.89 | B116: 5550 | C116: 5550.696262 | D116: -0.6962623526 | E116: =+IF(A116<>"",(A116-Report!D$19)^2,"") -> 76973.35065
A117: 5553.51 | B117: 5550 | C117: 5552.316591 | D117: -2.316590651 | E117: =+IF(A117<>"",(A117-Report!D$19)^2,"") -> 76077.06713
A118: 5564.63 | B118: 5550 | C118: 5563.438844 | D118: -13.43884415 | E118: =+IF(A118<>"",(A118-Report!D$19)^2,"") -> 70066.46882
A119: 5567.58 | B119: 5550 | C119: 5566.389442 | D119: -16.38944198 | E119: =+IF(A119<>"",(A119-Report!D$19)^2,"") -> 68513.4371
A120: 5550.12 | B120: 5560 | C120: 5548.925904 | D120: 11.07409634 | E120: =+IF(A120<>"",(A120-Report!D$19)^2,"") -> 77958.62369
A121: 5559.5 | B121: 5560 | C121: 5558.307805 | D121: 1.692195457 | E121: =+IF(A121<>"",(A121-Report!D$19)^2,"") -> 72808.61506
A122: 5559.55 | B122: 5560 | C122: 5558.357815 | D122: 1.642185324 | E122: =+IF(A122<>"",(A122-Report!D$19)^2,"") -> 72781.63449
A123: 5561.14 | B123: 5560 | C123: 5559.948137 | D123: 0.05186310586 | E123: =+IF(A123<>"",(A123-Report!D$19)^2,"") -> 71926.25991
A124: 5564.46 | B124: 5560 | C124: 5563.26881 | D124: -3.268809703 | E124: =+IF(A124<>"",(A124-Report!D$19)^2,"") -> 70156.49596
A125: 5579.57 | B125: 5560 | C125: 5578.381872 | D125: -18.38187179 | E125: =+IF(A125<>"",(A125-Report!D$19)^2,"") -> 62380.41504
A126: 5561.11 | B126: 5570 | C126: 5559.918131 | D126: 10.08186919 | E126: =+IF(A126<>"",(A126-Report!D$19)^2,"") -> 71942.35226
A127: 5570.26 | B127: 5570 | C127: 5569.069985 | D127: 0.9300149093 | E127: =+IF(A127<>"",(A127-Report!D$19)^2,"") -> 67117.63566
A128: 5574.07 | B128: 5570 | C128: 5572.880757 | D128: -2.880757199 | E128: =+IF(A128<>"",(A128-Report!D$19)^2,"") -> 65158.03291
A129: 5574.09 | B129: 5570 | C129: 5572.900761 | D129: -2.900761252 | E129: =+IF(A129<>"",(A129-Report!D$19)^2,"") -> 65147.82288
A130: 5581.65 | B130: 5570 | C130: 5580.462293 | D130: -10.46229331 | E130: =+IF(A130<>"",(A130-Report!D$19)^2,"") -> 61345.73686
A131: 5593.15 | B131: 5570 | C131: 5591.964624 | D131: =+IF(B131<>"",B131-C131,"") -> -21.96462382 | E131: =+IF(A131<>"",(A131-Report!D$19)^2,"") -> 55781.3304
A132: 5574.39 | B132: 5580 | C132: 5573.200822 | D132: 6.799177952 | E132: =+IF(A132<>"",(A132-Report!D$19)^2,"") -> 64994.76845
A133: 5577.68 | B133: 5580 | C133: 5576.491489 | D133: 3.508511223 | E133: =+IF(A133<>"",(A133-Report!D$19)^2,"") -> 63328.08264
A134: 5586.07 | B134: 5580 | C134: 5584.883189 | D134: -4.883189037 | E134: =+IF(A134<>"",(A134-Report!D$19)^2,"") -> 59175.77574
A135: 5579.91 | B135: 5590 | C135: 5578.721941 | D135: 11.27805931 | E135: =+IF(A135<>"",(A135-Report!D$19)^2,"") -> 62210.69335
A136: 5594.19 | B136: 5590 | C136: 5593.004835 | D136: -3.00483458 | E136: =+IF(A136<>"",(A136-Report!D$19)^2,"") -> 55291.15612
A137: 5612.61 | B137: 5590 | C137: 5611.428567 | D137: -21.42856745 | E137: =+IF(A137<>"",(A137-Report!D$19)^2,"") -> 46967.86855
A138: 5579.56 | B138: 5600 | C138: 5578.37187 | D138: 21.62813024 | E138: =+IF(A138<>"",(A138-Report!D$19)^2,"") -> 62385.41035
A139: 5592.91 | B139: 5600 | C139: 5591.724575 | D139: 8.275424816 | E139: =+IF(A139<>"",(A139-Report!D$19)^2,"") -> 55894.75475
A140: 5594.44 | B140: 5600 | C140: 5593.254885 | D140: 6.745114756 | E140: =+IF(A140<>"",(A140-Report!D$19)^2,"") -> 55173.64826
A141: 5601.08 | B141: 5600 | C141: 5599.896231 | D141: 0.1037691397 | E141: =+IF(A141<>"",(A141-Report!D$19)^2,"") -> 52098.38916
A142: 5601.53 | B142: 5600 | C142: 5600.346322 | D142: -0.3463220542 | E142: =+IF(A142<>"",(A142-Report!D$19)^2,"") -> 51893.16601
A143: 5602.15 | B143: 5600 | C143: 5600.966448 | D143: -0.9664476992 | E143: =+IF(A143<>"",(A143-Report!D$19)^2,"") -> 51611.07752
A144: 5602.27 | B144: 5610 | C144: 5601.086472 | D144: 8.913527982 | E144: =+IF(A144<>"",(A144-Report!D$19)^2,"") -> 51556.56855
A145: 5605.25 | B145: 5610 | C145: 5604.067076 | D145: 5.932924076 | E145: =+IF(A145<>"",(A145-Report!D$19)^2,"") -> 50212.16709
A146: 5605.64 | B146: 5610 | C146: 5604.457155 | D146: 5.542845041 | E146: =+IF(A146<>"",(A146-Report!D$19)^2,"") -> 50037.53623
A147: 5610.82 | B147: 5610 | C147: 5609.638205 | D147: 0.3617952982 | E147: =+IF(A147<>"",(A147-Report!D$19)^2,"") -> 47746.93282
A148: 5623.62 | B148: 5610 | C148: 5622.440799 | D148: -12.44079866 | E148: =+IF(A148<>"",(A148-Report!D$19)^2,"") -> 42316.8985
A149: 5613.91 | B149: 5620 | C149: 5612.728831 | D149: 7.2711691 | E149: =+IF(A149<>"",(A149-Report!D$19)^2,"") -> 46406.08469
A150: 5617.98 | B150: 5620 | C150: 5616.799656 | D150: 3.200344302 | E150: =+IF(A150<>"",(A150-Report!D$19)^2,"") -> 44669.12497
A151: 5627.6 | B151: 5620 | C151: 5626.421605 | D151: -6.421605221 | E151: =+IF(A151<>"",(A151-Report!D$19)^2,"") -> 40695.2816
A152: 5637.03 | B152: 5620 | C152: 5635.853516 | D152: -15.85351624 | E152: =+IF(A152<>"",(A152-Report!D$19)^2,"") -> 36979.56521
A153: 5651.15 | B153: 5620 | C153: 5649.976378 | D153: -29.9763777 | E153: =+IF(A153<>"",(A153-Report!D$19)^2,"") -> 31748.3674
A154: 5608.29 | B154: 5630 | C154: 5607.107692 | D154: 22.89230801 | E154: =+IF(A154<>"",(A154-Report!D$19)^2,"") -> 48858.99794
A155: 5619.44 | B155: 5630 | C155: 5618.259952 | D155: 11.74004843 | E155: =+IF(A155<>"",(A155-Report!D$19)^2,"") -> 44054.11248
A156: 5634.39 | B156: 5630 | C156: 5633.212981 | D156: -3.212981236 | E156: =+IF(A156<>"",(A156-Report!D$19)^2,"") -> 38001.88258
A157: 5645.53 | B157: 5630 | C157: 5644.355239 | D157: -14.35523879 | E157: =+IF(A157<>"",(A157-Report!D$19)^2,"") -> 33782.70304
A158: 5647.54 | B158: 5630 | C158: 5646.365646 | D158: -16.36564612 | E158: =+IF(A158<>"",(A158-Report!D$19)^2,"") -> 33047.86427
A159: 5650.3 | B159: 5630 | C159: 5649.126205 | D159: -19.12620545 | E159: =+IF(A159<>"",(A159-Report!D$19)^2,"") -> 32051.99712
A160: 5625.16 | B160: 5640 | C160: 5623.981111 | D160: 16.01888925 | E160: =+IF(A160<>"",(A160-Report!D$19)^2,"") -> 41685.68109
A161: 5635.06 | B161: 5640 | C161: 5633.883117 | D161: 6.116882986 | E161: =+IF(A161<>"",(A161-Report!D$19)^2,"") -> 37741.11093
A162: 5640.99 | B162: 5640 | C162: 5639.814319 | D162: 0.1856812531 | E162: =+IF(A162<>"",(A162-Report!D$19)^2,"") -> 35472.22514
A163: 5644.44 | B163: 5640 | C163: 5643.265018 | D163: -3.2650179 | E163: =+IF(A163<>"",(A163-Report!D$19)^2,"") -> 34184.5767
A164: 5649.89 | B164: 5640 | C164: 5648.716122 | D164: -8.71612236 | E164: =+IF(A164<>"",(A164-Report!D$19)^2,"") -> 32198.9704
A165: 5650.91 | B165: 5640 | C165: 5649.736329 | D165: -9.736329066 | E165: =+IF(A165<>"",(A165-Report!D$19)^2,"") -> 31833.95174
A166: 5654.38 | B166: 5640 | C166: 5653.207032 | D166: -13.20703227 | E166: =+IF(A166<>"",(A166-Report!D$19)^2,"") -> 30607.75288
A167: 5658.84 | B167: 5640 | C167: 5657.667936 | D167: -17.66793611 | E167: =+IF(A167<>"",(A167-Report!D$19)^2,"") -> 29067.08409
A168: 5660.49 | B168: 5640 | C168: 5659.31827 | D168: -19.31827048 | E168: =+IF(A168<>"",(A168-Report!D$19)^2,"") -> 28507.18723
A169: 5616.72 | B169: 5650 | C169: 5615.5394 | D169: 34.46059964 | E169: =+IF(A169<>"",(A169-Report!D$19)^2,"") -> 45203.31637
A170: 5651.76 | B170: 5650 | C170: 5650.586501 | D170: -0.5865013212 | E170: =+IF(A170<>"",(A170-Report!D$19)^2,"") -> 31531.35903
A171: 5655.74 | B171: 5650 | C171: 5654.567308 | D171: -4.567307881 | E171: =+IF(A171<>"",(A171-Report!D$19)^2,"") -> 30133.73653
A172: 5666.66 | B172: 5650 | C172: 5665.489521 | D172: -15.48952085 | E172: =+IF(A172<>"",(A172-Report!D$19)^2,"") -> 26461.7617
A173: 5635.83 | B173: 5660 | C173: 5634.653273 | D173: 25.34672694 | E173: =+IF(A173<>"",(A173-Report!D$19)^2,"") -> 37442.52692
A174: 5640.88 | B174: 5660 | C174: 5639.704296 | D174: 20.29570354 | E174: =+IF(A174<>"",(A174-Report!D$19)^2,"") -> 35513.6722
A175: 5650.65 | B175: 5660 | C175: 5649.476276 | D175: 10.52372362 | E175: =+IF(A175<>"",(A175-Report!D$19)^2,"") -> 31926.79811
A176: 5661.33 | B176: 5660 | C176: 5660.158441 | D176: -0.1584407116 | E176: =+IF(A176<>"",(A176-Report!D$19)^2,"") -> 28224.24043
A177: 5665.82 | B177: 5660 | C177: 5664.649351 | D177: -4.649350624 | E177: =+IF(A177<>"",(A177-Report!D$19)^2,"") -> 26735.7541
A178: 5653.64 | B178: 5670 | C178: 5652.466882 | D178: 17.53311769 | E178: =+IF(A178<>"",(A178-Report!D$19)^2,"") -> 30867.22754
A179: 5659.39 | B179: 5670 | C179: 5658.218048 | D179: 11.78195244 | E179: =+IF(A179<>"",(A179-Report!D$19)^2,"") -> 28879.84681
A180: 5661.03 | B180: 5670 | C180: 5659.85838 | D180: 10.14162008 | E180: =+IF(A180<>"",(A180-Report!D$19)^2,"") -> 28325.13086
A181: 5662.55 | B181: 5670 | C181: 5661.378688 | D181: 8.621312052 | E181: =+IF(A181<>"",(A181-Report!D$19)^2,"") -> 27815.80708
A182: 5670.9 | B182: 5670 | C182: 5669.73038 | D182: 0.2696198979 | E182: =+IF(A182<>"",(A182-Report!D$19)^2,"") -> 25100.29163
A183: 5674.49 | B183: 5670 | C183: 5673.321108 | D183: -3.321107627 | E183: =+IF(A183<>"",(A183-Report!D$19)^2,"") -> 23975.6472
A184: 5665.26 | B184: 5680 | C184: 5664.089237 | D184: 15.91076286 | E184: =+IF(A184<>"",(A184-Report!D$19)^2,"") -> 26919.19971
A185: 5669 | B185: 5680 | C185: 5667.829995 | D185: 12.17000494 | E185: =+IF(A185<>"",(A185-Report!D$19)^2,"") -> 25705.93835
A186: 5671.56 | B186: 5680 | C186: 5670.390514 | D186: 9.609486147 | E186: =+IF(A186<>"",(A186-Report!D$19)^2,"") -> 24891.59869
A187: 5672.99 | B187: 5680 | C187: 5671.820804 | D187: 8.179196353 | E187: =+IF(A187<>"",(A187-Report!D$19)^2,"") -> 24442.41934
A188: 5688.36 | B188: 5680 | C188: 5687.193918 | D188: -7.193918426 | E188: =+IF(A188<>"",(A188-Report!D$19)^2,"") -> 19872.74265
A189: 5691.88 | B189: 5680 | C189: 5690.714632 | D189: -10.71463176 | E189: =+IF(A189<>"",(A189-Report!D$19)^2,"") -> 18892.69921
A190: 5708.84 | B190: 5680 | C190: 5707.678069 | D190: -27.67806876 | E190: =+IF(A190<>"",(A190-Report!D$19)^2,"") -> 14518.01254
A191: 5677.19 | B191: 5690 | C191: 5676.021655 | D191: 13.97834521 | E191: =+IF(A191<>"",(A191-Report!D$19)^2,"") -> 23146.79733
A192: 5701.17 | B192: 5690 | C192: 5700.006514 | D192: -10.00651441 | E192: =+IF(A192<>"",(A192-Report!D$19)^2,"") -> 16425.16901
A193: 5709.46 | B193: 5690 | C193: 5708.298194 | D193: -18.29819441 | E193: =+IF(A193<>"",(A193-Report!D$19)^2,"") -> 14368.98845
A194: 5689.51 | B194: 5700 | C194: 5688.344151 | D194: 11.65584852 | E194: =+IF(A194<>"",(A194-Report!D$19)^2,"") -> 19549.8325
A195: 5689.97 | B195: 5700 | C195: 5688.804245 | D195: =+IF(B195<>"",B195-C195,"") -> 11.1957553 | E195: =+IF(A195<>"",(A195-Report!D$19)^2,"") -> 19421.40904
A196: 5691.42 | B196: 5700 | C196: 5690.254539 | D196: 9.745461456 | E196: =+IF(A196<>"",(A196-Report!D$19)^2,"") -> 19019.36547
A197: 5691.9 | B197: 5700 | C197: 5690.734636 | D197: 9.265364182 | E197: =+IF(A197<>"",(A197-Report!D$19)^2,"") -> 18887.20158
A198: 5696.8 | B198: 5700 | C198: 5695.635629 | D198: 4.364371182 | E198: =+IF(A198<>"",(A198-Report!D$19)^2,"") -> 17564.39057
A199: 5719.55 | B199: 5700 | C199: 5718.390239 | D199: -18.39023918 | E199: =+IF(A199<>"",(A199-Report!D$19)^2,"") -> 12051.80551
A200: 5726.4 | B200: 5700 | C200: 5725.241627 | D200: -25.24162735 | E200: =+IF(A200<>"",(A200-Report!D$19)^2,"") -> 10594.73221
... 799 more rows

Sheet Relative Precision
A4: Alternative Method (X)
A5: Average:………………………….. | B5: =AVERAGE('Data Entry'!A:A) -> 5829.330716
A7: Designated Method (Y)
A8: Average:………………………….. | B8: =AVERAGE('Data Entry'!B:B) -> 5828.193202
A10: Change of Mean %
A11: (Ybar-Xbar)/Ybar | B11: =(B8-B5)/B8 -> -0.0001951742808

Sheet Report
A1: CARB Site Specific Test Method Certification | G1: Date | K1: =+'General Info'!B4 -> 2004-03-16
A2: ='General Info'!B3 -> Hypothetical Analytical Case | G2: Refinery Name | K2: =+'General Info'!B5 -> ABC Refining Company
G3: Refinery location | K3: =+'General Info'!B6 -> Somewhere, CA
G4: Gasoline Property | K4: =+'General Info'!B7 -> Length
G5: Alternative Test Method | K5: =+'General Info'!B9 -> Laser measurement
G6: Designated Test Method | K6: =+'General Info'!B10 -> Tape measurement
A7: For regression equation
B9: b0 | D9: =+'Data Entry'!U2 -> -2.318845556 | G9: Coefficient Values
B10: b1 | D10: =+'Data Entry'!T2 -> 1.000202653 | I10: Standard
B11: r2 | D11: =+'Data Entry'!T4 -> 0.99806957 | H11: Coefficients | I11: Error | J11: t Stat | K11: P-value
B12: F | D12: =+K17 -> 287979.7509 | G12: Intercept | H12: =+D9 -> -2.318845556 | I12: =+'Data Entry'!U3 -> 10.87615333 | J12: =+H12/I12 -> -0.2132045664 | K12: =TDIST(ABS(J12),D13,2) -> 0.8312454176
B13: d.f. | D13: =+'Data Entry'!U5 -> 557 | G13: X Variable | H13: =+D10 -> 1.000202653 | I13: =+'Data Entry'!T3 -> 0.001863833127 | J13: =+H13/I13 -> 536.6374483 | K13: =TDIST(ABS(J13),D13,2) -> 0
B14: s | D14: =+'Data Entry'!U4 -> 11.69479713
B15: Std Error, b0 | D15: =+'Data Entry'!U3 -> 10.87615333 | G15: ANOVA
B16: Std Error, b1 | D16: =+'Data Entry'!T3 -> 0.001863833127 | H16: df | I16: SS | J16: MS | K16: F
B17: a1 | D17: =+'Data Entry'!G3 -> 0.025 | G17: Regression | H17: 1 | I17: =+'Data Entry'!T6 -> 39386495.2 | J17: =+I17/H17 -> 39386495.2 | K17: =+J17/J18 -> 287979.7509
B18: BF Constant | D18: =+'Data Entry'!V17 -> 2.476 | G18: Residual | H18: =+D13 -> 557 | I18: =+'Data Entry'!U6 -> 76179.93196 | J18: =+I18/H18 -> 136.76828
B19: Xbar | D19: =AVERAGE('Data Entry'!A2:A999) -> 5829.330716 | G19: Total | H19: =+H17+H18 -> 558 | I19: =+I18+I17 -> 39462675.13
B20: S(X-Xbar)2 | D20: =SUM('Data Entry'!E2:E999) -> 39370536.46
B21: a2 | D21: =+'Data Entry'!H3 -> 0.025
B22: C2 | D22: =CHIINV(1-D21,COUNT('Data Entry'!A2:A999)-2) -> 493.4974006
B23: Sucb | D23: =SQRT((COUNT('Data Entry'!A2:A999)-2)*D14^2/D22) -> 12.42446954
B24: XDRESucb | D24: =1.645*D23 -> 20.43825239
B25: Anderson-Darling, Crit | D25: =+'Normal Plot Data Sheet'!M4 -> 1
B26: Anderson-Darling, Calc | D26: =+'Normal Plot Data Sheet'!K5 -> 0.3266660794
B28: r2 greater than 0.8 | D28: =IF(D11>=0.8,"Pass","Fail") -> Pass
B29: Upper Bound Determination | D29: =IF(SUM('Data Entry'!P10:P50)=0,"Pass","Fail") -> Pass

Sheet Normal Plot Data Sheet
J1: n= | K1: =COUNT(A4:A1003) -> 559 | O1: 0
A2: Resid | B2: Resid | C2: Rank | D2: Rank | E2: Used to Calculate | J2: mean= | K2: =AVERAGE(A4:A1003) -> -2.837493309e-12
A3: Y-Yhat | B3: (in Z) | D3: (in Z) | E3: Anderson-Darlilng | J3: std. dev.= | K3: =STDEV(A4:A1003) -> 11.68431323
A4: -39.8394209 | B4: =+IF(A4<>"",(A4-K$2)/K$3,"") -> -3.409650198 | C4: =IF(A4<>"",RANK(A4,A$4:A$1003,1)+SUM(IF(A$4:A4=A4,1,0))-1.5,"") -> 0.5 | D4: =IF(A4<>"",NORMSINV(C4/($K$1)),"") -> -3.123208656 | E4: =IF(A4<>"",NORMDIST(A4,$K$2,$K$3,1),"") -> 0.0003252312491 | F4: =IF(A4<>"",-2*C4*LN(E4)-(2*$K$1-2*C4)*LN(1-E4),"") -> 8.394316487 | L4: crit. Val | M4: 1
A5: -35.37381086 | B5: =+IF(A5<>"",(A5-K$2)/K$3,"") -> -3.027461706 | C5: =IF(A5<>"",RANK(A5,A$4:A$1003,1)+SUM(IF(A$4:A5=A5,1,0))-1.5,"") -> 1.5 | D5: =IF(A5<>"",NORMSINV(C5/($K$1)),"") -> -2.784155712 | E5: =IF(A5<>"",NORMDIST(A5,$K$2,$K$3,1),"") -> 0.001233084793 | F5: =IF(A5<>"",-2*C5*LN(E5)-(2*$K$1-2*C5)*LN(1-E5),"") -> 21.47044678 | J5: A*= | K5: =(SUM(F4:F1003)/$K$1-$K$1)*(1+0.75/$K$1+2.25/$K$1^2) -> 0.3266660794
A6: -34.36968577 | B6: -2.941523828 | C6: =IF(A6<>"",RANK(A6,A$4:A$1003,1)+SUM(IF(A$4:A6=A6,1,0))-1.5,"") -> 2.5 | D6: -2.614166491 | E6: 0.00163300857 | F6: 33.90568027
A7: -31.93919332 | B7: -2.733510537 | C7: =IF(A7<>"",RANK(A7,A$4:A$1003,1)+SUM(IF(A$4:A7=A7,1,0))-1.5,"") -> 3.5 | D7: -2.497071759 | E7: 0.003133155912 | F7: 43.84640232 | I7: Normal Plot data
A8: -29.9763777 | B8: -2.565523289 | C8: =IF(A8<>"",RANK(A8,A$4:A$1003,1)+SUM(IF(A$4:A8=A8,1,0))-1.5,"") -> 4.5 | D8: -2.406636663 | E8: 0.005151015257 | F8: 53.14429218 | I8: -4 | J8: =+I8-0.5 -> -4.5 | K8: =+I8+0.5 -> -3.5 | L8: =+$K$2+J8*$K$3 -> -52.57940952 | M8: =+$K$2+K8*$K$3 -> -40.89509629 | N8: =(COUNTIF(A$4:A$1004,"<"&M8)-COUNTIF(A$4:A$1004,"<"&L8)) -> 0 | O8: =(COUNTIF(A$4:A$1004,"<"&M8)-COUNTIF(A$4:A$1004,"<"&L8))/K$1 -> 0 | P8: =NORMDIST(J8,0,1,1) -> 3.397673125e-06 | Q8: =NORMDIST(K8,0,1,1) -> 0.000232629079 | R8: =+Q8-P8 -> 0.0002292314059
A9: -29.85537189 | B9: -2.555167028 | C9: =IF(A9<>"",RANK(A9,A$4:A$1003,1)+SUM(IF(A$4:A9=A9,1,0))-1.5,"") -> 5.5 | D9: -2.332431617 | E9: 0.0053068427 | F9: 63.5166586 | I9: =+I8+1 -> -3 | J9: =+I9-0.5 -> -3.5 | K9: =+I9+0.5 -> -2.5 | L9: =+$K$2+J9*$K$3 -> -40.89509629 | M9: =+$K$2+K9*$K$3 -> -29.21078306 | N9: =(COUNTIF(A$4:A$1004,"<"&M9)-COUNTIF(A$4:A$1004,"<"&L9)) -> 7 | O9: =(COUNTIF(A$4:A$1004,"<"&M9)-COUNTIF(A$4:A$1004,"<"&L9))/K$1 -> 0.01252236136 | P9: =NORMDIST(J9,0,1,1) -> 0.000232629079 | Q9: =NORMDIST(K9,0,1,1) -> 0.006209665326 | R9: =+Q9-P9 -> 0.005977036247
A10: -29.47385795 | B10: -2.522515221 | C10: =IF(A10<>"",RANK(A10,A$4:A$1003,1)+SUM(IF(A$4:A10=A10,1,0))-1.5,"") -> 6.5 | D10: -2.269205796 | E10: 0.005825945379 | F10: 73.3471375 | I10: =+I9+1 -> -2 | J10: =+I10-0.5 -> -2.5 | K10: =+I10+0.5 -> -1.5 | L10: =+$K$2+J10*$K$3 -> -29.21078306 | M10: =+$K$2+K10*$K$3 -> -17.52646984 | N10: =(COUNTIF(A$4:A$1004,"<"&M10)-COUNTIF(A$4:A$1004,"<"&L10)) -> 29 | O10: =(COUNTIF(A$4:A$1004,"<"&M10)-COUNTIF(A$4:A$1004,"<"&L10))/K$1 -> 0.0518783542 | P10: =NORMDIST(J10,0,1,1) -> 0.006209665326 | Q10: =NORMDIST(K10,0,1,1) -> 0.06680720127 | R10: =+Q10-P10 -> 0.06059753594
A11: -28.11881108 | B11: -2.40654376 | C11: =IF(A11<>"",RANK(A11,A$4:A$1003,1)+SUM(IF(A$4:A11=A11,1,0))-1.5,"") -> 7.5 | D11: -2.213929465 | E11: 0.008052137274 | F11: 81.24472393 | I11: -1 | J11: -1.5 | K11: -0.5 | L11: -17.52646984 | M11: -5.842156613 | N11: 126 | O11: 0.2254025045 | P11: 0.06680720127 | Q11: 0.3085375387 | R11: 0.2417303375
A12: -27.67806876 | B12: -2.368822902 | C12: =IF(A12<>"",RANK(A12,A$4:A$1003,1)+SUM(IF(A$4:A12=A12,1,0))-1.5,"") -> 8.5 | D12: -2.164689796 | E12: 0.008922397929 | F12: 90.09388664 | I12: 0 | J12: -0.5 | K12: 0.5 | L12: -5.842156613 | M12: 5.842156613 | N12: 225 | O12: 0.4025044723 | P12: 0.3085375387 | Q12: 0.6914624613 | R12: 0.3829249225
A13: -27.25909577 | B13: -2.332965168 | C13: =IF(A13<>"",RANK(A13,A$4:A$1003,1)+SUM(IF(A$4:A13=A13,1,0))-1.5,"") -> 9.5 | D13: -2.120199002 | E13: 0.009824986767 | F13: 98.6847568 | I13: 1 | J13: 0.5 | K13: 1.5 | L13: 5.842156613 | M13: 17.52646984 | N13: 137 | O13: 0.2450805009 | P13: 0.6914624613 | Q13: 0.9331927987 | R13: 0.2417303375
A14: -25.24162735 | B14: -2.16030047 | C14: =IF(A14<>"",RANK(A14,A$4:A$1003,1)+SUM(IF(A$4:A14=A14,1,0))-1.5,"") -> 10.5 | D14: -2.079547202 | E14: 0.01537470832 | F14: 104.672715 | I14: 2 | J14: 1.5 | K14: 2.5 | L14: 17.52646984 | M14: 29.21078306 | N14: 30 | O14: 0.05366726297 | P14: 0.9331927987 | Q14: 0.9937903347 | R14: 0.06059753594
A15: -25.05106633 | B15: -2.143991336 | C15: =IF(A15<>"",RANK(A15,A$4:A$1003,1)+SUM(IF(A$4:A15=A15,1,0))-1.5,"") -> 11.5 | D15: -2.04206684 | E15: 0.01601679049 | F15: 112.765065 | I15: 3 | J15: 2.5 | K15: 3.5 | L15: 29.21078306 | M15: 40.89509629 | N15: 5 | O15: 0.008944543828 | P15: 0.9937903347 | Q15: 0.9997673709 | R15: 0.005977036247
A16: -23.90848043 | B16: -2.046203313 | C16: =IF(A16<>"",RANK(A16,A$4:A$1003,1)+SUM(IF(A$4:A16=A16,1,0))-1.5,"") -> 12.5 | D16: -2.00725311 | E16: 0.02036818577 | F16: 119.836804 | I16: 4 | J16: 3.5 | K16: 4.5 | L16: 40.89509629 | M16: 52.57940952 | N16: 0 | O16: 0 | P16: 0.9997673709 | Q16: 0.9999966023 | R16: 0.0002292314059
A17: -23.89756399 | B17: -2.045269031 | C17: =IF(A17<>"",RANK(A17,A$4:A$1003,1)+SUM(IF(A$4:A17=A17,1,0))-1.5,"") -> 13.5 | D17: -1.974714675 | E17: 0.02041417104 | F17: 127.5735343
A18: -23.67993783 | B18: -2.026643533 | C18: =IF(A18<>"",RANK(A18,A$4:A$1003,1)+SUM(IF(A$4:A18=A18,1,0))-1.5,"") -> 14.5 | D18: -1.944141797 | E18: 0.02134944058 | F18: 135.0564756 | I18: q-q line plot data
A19: -22.60919847 | B19: -1.935004483 | C19: =IF(A19<>"",RANK(A19,A$4:A$1003,1)+SUM(IF(A$4:A19=A19,1,0))-1.5,"") -> 15.5 | D19: -1.915284967 | E19: 0.02649487278 | F19: 141.7432531 | I19: -4
A20: -22.57147816 | B20: -1.931776196 | C20: =IF(A20<>"",RANK(A20,A$4:A$1003,1)+SUM(IF(A$4:A20=A20,1,0))-1.5,"") -> 16.5 | D20: -1.887940123 | E20: 0.02669356767 | F20: 148.9260748 | I20: 4
A21: -22.23219304 | B21: -1.902738536 | C21: =IF(A21<>"",RANK(A21,A$4:A$1003,1)+SUM(IF(A$4:A21=A21,1,0))-1.5,"") -> 17.5 | D21: -1.861938164 | E21: 0.02853733547 | F21: 155.8344654
A22: -21.96462382 | B22: -1.879838669 | C22: =IF(A22<>"",RANK(A22,A$4:A$1003,1)+SUM(IF(A$4:A22=A22,1,0))-1.5,"") -> 18.5 | D22: -1.837137331 | E22: 0.03006503431 | F22: 162.6614021
A23: -21.59167145 | B23: -1.847919602 | C23: =IF(A23<>"",RANK(A23,A$4:A$1003,1)+SUM(IF(A$4:A23=A23,1,0))-1.5,"") -> 19.5 | D23: -1.813417569 | E23: 0.03230698717 | F23: 169.3011656
A24: -21.42856745 | B24: -1.833960374 | C24: =IF(A24<>"",RANK(A24,A$4:A$1003,1)+SUM(IF(A$4:A24=A24,1,0))-1.5,"") -> 20.5 | D24: -1.790676273 | E24: 0.03332993826 | F24: 175.9614574
A25: -21.25814111 | B25: -1.819374464 | C25: =IF(A25<>"",RANK(A25,A$4:A$1003,1)+SUM(IF(A$4:A25=A25,1,0))-1.5,"") -> 21.5 | D25: -1.768825039 | E25: 0.03442715995 | F25: 182.5243756
A26: -20.93304171 | B26: -1.791550886 | C26: =IF(A26<>"",RANK(A26,A$4:A$1003,1)+SUM(IF(A$4:A26=A26,1,0))-1.5,"") -> 22.5 | D26: -1.747787131 | E26: 0.03660246827 | F26: 188.8550366
A27: -20.53394214 | B27: -1.757394015 | C27: =IF(A27<>"",RANK(A27,A$4:A$1003,1)+SUM(IF(A$4:A27=A27,1,0))-1.5,"") -> 23.5 | D27: -1.727495504 | E27: 0.03942533635 | F27: 195.0467297
A28: -19.45274178 | B28: -1.664859663 | C28: =IF(A28<>"",RANK(A28,A$4:A$1003,1)+SUM(IF(A$4:A28=A28,1,0))-1.5,"") -> 24.5 | D28: -1.707891215 | E28: 0.04797037867 | F28: 201.3725167
A29: -19.31827048 | B29: -1.653350959 | C29: =IF(A29<>"",RANK(A29,A$4:A$1003,1)+SUM(IF(A$4:A29=A29,1,0))-1.5,"") -> 25.5 | D29: -1.688922165 | E29: 0.04912972868 | F29: 207.4307792
A30: -19.12620545 | B30: -1.636913105 | C30: =IF(A30<>"",RANK(A30,A$4:A$1003,1)+SUM(IF(A$4:A30=A30,1,0))-1.5,"") -> 26.5 | D30: -1.670542062 | E30: 0.0508243136 | F30: 213.4590211
A31: -19.11469941 | B31: -1.635928363 | C31: =IF(A31<>"",RANK(A31,A$4:A$1003,1)+SUM(IF(A$4:A31=A31,1,0))-1.5,"") -> 27.5 | D31: -1.652709588 | E31: 0.05092729054 | F31: 219.3174666
A32: -18.97950788 | B32: -1.624358019 | C32: =IF(A32<>"",RANK(A32,A$4:A$1003,1)+SUM(IF(A$4:A32=A32,1,0))-1.5,"") -> 28.5 | D32: -1.635387698 | E32: 0.05214971066 | F32: 225.1830821
A33: -18.95152833 | B33: -1.621963394 | C33: =IF(A33<>"",RANK(A33,A$4:A$1003,1)+SUM(IF(A$4:A33=A33,1,0))-1.5,"") -> 29.5 | D33: -1.618543049 | E33: 0.05240559318 | F33: 230.9803783
A34: -18.92341816 | B34: -1.619557589 | C34: =IF(A34<>"",RANK(A34,A$4:A$1003,1)+SUM(IF(A$4:A34=A34,1,0))-1.5,"") -> 30.5 | D34: -1.602145517 | E34: 0.05266367313 | F34: 236.7584536
A35: -18.39023918 | B35: -1.573925555 | C35: =IF(A35<>"",RANK(A35,A$4:A$1003,1)+SUM(IF(A$4:A35=A35,1,0))-1.5,"") -> 31.5 | D35: -1.58616779 | E35: 0.05775233059 | F35: 242.409181
A36: -18.38187179 | B36: -1.573209434 | C36: =IF(A36<>"",RANK(A36,A$4:A$1003,1)+SUM(IF(A$4:A36=A36,1,0))-1.5,"") -> 32.5 | D36: -1.570585029 | E36: 0.05783516585 | F36: 247.9928018
A37: -18.29819441 | B37: -1.566047919 | C37: =IF(A37<>"",RANK(A37,A$4:A$1003,1)+SUM(IF(A$4:A37=A37,1,0))-1.5,"") -> 33.5 | D37: -1.555374568 | E37: 0.05866869971 | F37: 253.5454729
A38: -17.69120944 | B38: -1.514099211 | C38: =IF(A38<>"",RANK(A38,A$4:A$1003,1)+SUM(IF(A$4:A38=A38,1,0))-1.5,"") -> 34.5 | D38: -1.540515675 | E38: 0.06500033934 | F38: 259.1043915
A39: -17.66793611 | B39: -1.512107367 | C39: =IF(A39<>"",RANK(A39,A$4:A$1003,1)+SUM(IF(A$4:A39=A39,1,0))-1.5,"") -> 35.5 | D39: -1.525989328 | E39: 0.06525327553 | F39: 264.4442252
A40: -17.38055702 | B40: -1.487512076 | C40: =IF(A40<>"",RANK(A40,A$4:A$1003,1)+SUM(IF(A$4:A40=A40,1,0))-1.5,"") -> 36.5 | D40: -1.511778032 | E40: 0.06843980815 | F40: 269.8561703
A41: -17.30308986 | B41: -1.480882062 | C41: =IF(A41<>"",RANK(A41,A$4:A$1003,1)+SUM(IF(A$4:A41=A41,1,0))-1.5,"") -> 37.5 | D41: -1.497865659 | E41: 0.06931900199 | F41: 275.105485
A42: -17.26948968 | B42: -1.478006396 | C42: =IF(A42<>"",RANK(A42,A$4:A$1003,1)+SUM(IF(A$4:A42=A42,1,0))-1.5,"") -> 38.5 | D42: -1.48423731 | E42: 0.0697030331 | F42: 280.3041143
A43: -17.02009217 | B43: -1.456661752 | C43: =IF(A43<>"",RANK(A43,A$4:A$1003,1)+SUM(IF(A$4:A43=A43,1,0))-1.5,"") -> 39.5 | D43: -1.470879186 | E43: 0.07260488633 | F43: 285.5103447
A44: -16.86613934 | B44: -1.443485724 | C44: =IF(A44<>"",RANK(A44,A$4:A$1003,1)+SUM(IF(A$4:A44=A44,1,0))-1.5,"") -> 40.5 | D44: -1.457778487 | E44: 0.07444184552 | F44: 290.6372723
A45: -16.79651705 | B45: -1.437527112 | C45: =IF(A45<>"",RANK(A45,A$4:A$1003,1)+SUM(IF(A$4:A45=A45,1,0))-1.5,"") -> 41.5 | D45: -1.444923312 | E45: 0.07528413741 | F45: 295.6864945
A46: -16.59850305 | B46: -1.420580117 | C46: =IF(A46<>"",RANK(A46,A$4:A$1003,1)+SUM(IF(A$4:A46=A46,1,0))-1.5,"") -> 42.5 | D46: -1.43230258 | E46: 0.0777194311 | F46: 300.7209362
A47: -16.38944198 | B47: -1.40268766 | C47: =IF(A47<>"",RANK(A47,A$4:A$1003,1)+SUM(IF(A$4:A47=A47,1,0))-1.5,"") -> 43.5 | D47: -1.419905953 | E47: 0.0803549993 | F47: 305.7175307
A48: -16.36564612 | B48: -1.400651096 | C48: =IF(A48<>"",RANK(A48,A$4:A$1003,1)+SUM(IF(A$4:A48=A48,1,0))-1.5,"") -> 44.5 | D48: -1.407723771 | E48: 0.08065921672 | F48: 310.5967353
A49: -15.87835714 | B49: -1.358946549 | C49: =IF(A49<>"",RANK(A49,A$4:A$1003,1)+SUM(IF(A$4:A49=A49,1,0))-1.5,"") -> 45.5 | D49: -1.395746993 | E49: 0.08708176342 | F49: 315.691508
A50: -15.85351624 | B50: -1.356820545 | C50: =IF(A50<>"",RANK(A50,A$4:A$1003,1)+SUM(IF(A$4:A50=A50,1,0))-1.5,"") -> 46.5 | D50: -1.383967145 | E50: 0.0874191189 | F50: 320.4103626
A51: -15.76846548 | B51: -1.34954149 | C51: =IF(A51<>"",RANK(A51,A$4:A$1003,1)+SUM(IF(A$4:A51=A51,1,0))-1.5,"") -> 47.5 | D51: -1.372376272 | E51: 0.08858155163 | F51: 325.1504893
A52: -15.53109652 | B52: -1.329226307 | C52: =IF(A52<>"",RANK(A52,A$4:A$1003,1)+SUM(IF(A$4:A52=A52,1,0))-1.5,"") -> 48.5 | D52: -1.360966899 | E52: 0.09188665917 | F52: 329.9685356
A53: -15.48952085 | B53: -1.325668061 | C53: =IF(A53<>"",RANK(A53,A$4:A$1003,1)+SUM(IF(A$4:A53=A53,1,0))-1.5,"") -> 49.5 | D53: -1.349731988 | E53: 0.09247483566 | F53: 334.5786827
A54: -15.41662928 | B54: -1.319429647 | C54: =IF(A54<>"",RANK(A54,A$4:A$1003,1)+SUM(IF(A$4:A54=A54,1,0))-1.5,"") -> 50.5 | D54: -1.338664908 | E54: 0.09351275787 | F54: 339.182752
A55: -15.35086586 | B55: -1.313801296 | C55: =IF(A55<>"",RANK(A55,A$4:A$1003,1)+SUM(IF(A$4:A55=A55,1,0))-1.5,"") -> 51.5 | D55: -1.327759401 | E55: 0.09445654065 | F55: 343.7486981
A56: -15.33582928 | B56: -1.312514393 | C56: =IF(A56<>"",RANK(A56,A$4:A$1003,1)+SUM(IF(A$4:A56=A56,1,0))-1.5,"") -> 52.5 | D56: -1.317009559 | E56: 0.09467331646 | F56: 348.2713208
A57: -15.31098839 | B57: -1.310388389 | C57: =IF(A57<>"",RANK(A57,A$4:A$1003,1)+SUM(IF(A$4:A57=A57,1,0))-1.5,"") -> 53.5 | D57: -1.306409791 | E57: 0.09503223975 | F57: 352.783057
A58: -15.00412777 | B58: -1.284125774 | C58: =IF(A58<>"",RANK(A58,A$4:A$1003,1)+SUM(IF(A$4:A58=A58,1,0))-1.5,"") -> 54.5 | D58: -1.295954807 | E58: 0.09954897556 | F58: 357.2777422
A59: -14.96045849 | B59: -1.280388346 | C59: =IF(A59<>"",RANK(A59,A$4:A$1003,1)+SUM(IF(A$4:A59=A59,1,0))-1.5,"") -> 55.5 | D59: -1.285639591 | E59: 0.1002042952 | F59: 361.6870578
A60: -14.7950667 | B60: -1.266233318 | C60: =IF(A60<>"",RANK(A60,A$4:A$1003,1)+SUM(IF(A$4:A60=A60,1,0))-1.5,"") -> 56.5 | D60: -1.275459386 | E60: 0.1027147812 | F60: 366.0887201
A61: -14.70367508 | B61: -1.258411581 | C61: =IF(A61<>"",RANK(A61,A$4:A$1003,1)+SUM(IF(A$4:A61=A61,1,0))-1.5,"") -> 57.5 | D61: -1.265409677 | E61: 0.1041214729 | F61: 370.43296
A62: -14.59960175 | B62: -1.249504483 | C62: =IF(A62<>"",RANK(A62,A$4:A$1003,1)+SUM(IF(A$4:A62=A62,1,0))-1.5,"") -> 58.5 | D62: -1.25548617 | E62: 0.1057403075 | F62: 374.7428083
A63: -14.35523879 | B63: -1.228590719 | C63: =IF(A63<>"",RANK(A63,A$4:A$1003,1)+SUM(IF(A$4:A63=A63,1,0))-1.5,"") -> 59.5 | D63: -1.245684781 | E63: 0.1096126484 | F63: 379.068084
A64: -14.24613091 | B64: -1.21925274 | C64: =IF(A64<>"",RANK(A64,A$4:A$1003,1)+SUM(IF(A$4:A64=A64,1,0))-1.5,"") -> 60.5 | D64: -1.236001622 | E64: 0.1113741401 | F64: 383.3028239
A65: -14.0809333 | B65: -1.20511433 | C65: =IF(A65<>"",RANK(A65,A$4:A$1003,1)+SUM(IF(A$4:A65=A65,1,0))-1.5,"") -> 61.5 | D65: -1.226432989 | E65: 0.1140795843 | F65: 387.5381687
A66: -14.04556786 | B66: -1.202087584 | C66: =IF(A66<>"",RANK(A66,A$4:A$1003,1)+SUM(IF(A$4:A66=A66,1,0))-1.5,"") -> 62.5 | D66: -1.216975347 | E66: 0.1146647981 | F66: 391.6541996
A67: -13.95228034 | B67: -1.194103587 | C67: =IF(A67<>"",RANK(A67,A$4:A$1003,1)+SUM(IF(A$4:A67=A67,1,0))-1.5,"") -> 63.5 | D67: -1.207625325 | E67: 0.1162187251 | F67: 395.7734878
A68: -13.9277007 | B68: -1.191999943 | C68: =IF(A68<>"",RANK(A68,A$4:A$1003,1)+SUM(IF(A$4:A68=A68,1,0))-1.5,"") -> 64.5 | D68: -1.198379702 | E68: 0.1166306337 | F68: 399.8356147
A69: -13.81414787 | B69: =+IF(A69<>"",(A69-K$2)/K$3,"") -> -1.182281543 | C69: =IF(A69<>"",RANK(A69,A$4:A$1003,1)+SUM(IF(A$4:A69=A69,1,0))-1.5,"") -> 65.5 | D69: =IF(A69<>"",NORMSINV(C69/($K$1)),"") -> -1.189235399 | E69: =IF(A69<>"",NORMDIST(A69,$K$2,$K$3,1),"") -> 0.1185470033 | F69: =IF(A69<>"",-2*C69*LN(E69)-(2*$K$1-2*C69)*LN(1-E69),"") -> 403.8936063
A70: -13.43884415 | B70: -1.150161237 | C70: =IF(A70<>"",RANK(A70,A$4:A$1003,1)+SUM(IF(A$4:A70=A70,1,0))-1.5,"") -> 66.5 | D70: -1.180189471 | E70: 0.1250387342 | F70: 408.0965446
A71: -13.35542803 | B71: -1.143022082 | C71: =IF(A71<>"",RANK(A71,A$4:A$1003,1)+SUM(IF(A$4:A71=A71,1,0))-1.5,"") -> 67.5 | D71: -1.171239099 | E71: 0.1265147115 | F71: 412.0630557
A72: -13.31339339 | B72: -1.139424554 | C72: =IF(A72<>"",RANK(A72,A$4:A$1003,1)+SUM(IF(A$4:A72=A72,1,0))-1.5,"") -> 68.5 | D72: -1.162381583 | E72: 0.1272630597 | F72: 415.9601589
A73: -13.30051397 | B73: -1.138322272 | C73: =IF(A73<>"",RANK(A73,A$4:A$1003,1)+SUM(IF(A$4:A73=A73,1,0))-1.5,"") -> 69.5 | D73: -1.153614336 | E73: 0.1274929687 | F73: 419.8179651
A74: -13.20703227 | B74: -1.130321656 | C74: =IF(A74<>"",RANK(A74,A$4:A$1003,1)+SUM(IF(A$4:A74=A74,1,0))-1.5,"") -> 70.5 | D74: -1.144934875 | E74: 0.1291703563 | F74: 423.7016682
A75: -13.13767124 | B75: -1.124385403 | C75: =IF(A75<>"",RANK(A75,A$4:A$1003,1)+SUM(IF(A$4:A75=A75,1,0))-1.5,"") -> 71.5 | D75: -1.136340819 | E75: 0.1304247809 | F75: 427.5417607
A76: -13.09119165 | B76: -1.120407455 | C76: =IF(A76<>"",RANK(A76,A$4:A$1003,1)+SUM(IF(A$4:A76=A76,1,0))-1.5,"") -> 72.5 | D76: -1.127829882 | E76: 0.1312700847 | F76: 431.345743
A77: -12.90017165 | B77: -1.104059041 | C77: =IF(A77<>"",RANK(A77,A$4:A$1003,1)+SUM(IF(A$4:A77=A77,1,0))-1.5,"") -> 73.5 | D77: -1.119399865 | E77: 0.1347837637 | F77: 435.1776
A78: -12.83689021 | B78: -1.098643109 | C78: =IF(A78<>"",RANK(A78,A$4:A$1003,1)+SUM(IF(A$4:A78=A78,1,0))-1.5,"") -> 74.5 | D78: -1.111048657 | E78: 0.1359618832 | F78: 438.919829
A79: -12.75406369 | B79: -1.091554415 | C79: =IF(A79<>"",RANK(A79,A$4:A$1003,1)+SUM(IF(A$4:A79=A79,1,0))-1.5,"") -> 75.5 | D79: -1.102774226 | E79: 0.137514501 | F79: 442.6429356
A80: -12.70810662 | B80: -1.087621187 | C80: =IF(A80<>"",RANK(A80,A$4:A$1003,1)+SUM(IF(A$4:A80=A80,1,0))-1.5,"") -> 76.5 | D80: -1.094574617 | E80: 0.1383811868 | F80: 446.3240434
A81: -12.52225181 | B81: -1.071714834 | C81: =IF(A81<>"",RANK(A81,A$4:A$1003,1)+SUM(IF(A$4:A81=A81,1,0))-1.5,"") -> 77.5 | D81: -1.086447947 | E81: 0.141924068 | F81: 450.0311453
A82: -12.44079866 | B82: -1.06474368 | C82: =IF(A82<>"",RANK(A82,A$4:A$1003,1)+SUM(IF(A$4:A82=A82,1,0))-1.5,"") -> 78.5 | D82: -1.078392402 | E82: 0.1434959689 | F82: 453.6626895
A83: -12.43661497 | B83: -1.064385619 | C83: =IF(A83<>"",RANK(A83,A$4:A$1003,1)+SUM(IF(A$4:A83=A83,1,0))-1.5,"") -> 79.5 | D83: -1.070406236 | E83: 0.1435770228 | F83: 457.2367654
A84: -12.38039461 | B84: -1.059574009 | C84: =IF(A84<>"",RANK(A84,A$4:A$1003,1)+SUM(IF(A$4:A84=A84,1,0))-1.5,"") -> 80.5 | D84: -1.062487761 | E84: 0.1446692215 | F84: 460.8096932
A85: -12.19127052 | B85: -1.043387855 | C85: =IF(A85<>"",RANK(A85,A$4:A$1003,1)+SUM(IF(A$4:A85=A85,1,0))-1.5,"") -> 81.5 | D85: -1.054635352 | E85: 0.148384348 | F85: 464.3878245
A86: -11.95985053 | B86: -1.023581814 | C86: =IF(A86<>"",RANK(A86,A$4:A$1003,1)+SUM(IF(A$4:A86=A86,1,0))-1.5,"") -> 82.5 | D86: -1.04684744 | E86: 0.1530164193 | F86: 468.008151
A87: -11.85185477 | B87: -1.014339015 | C87: =IF(A87<>"",RANK(A87,A$4:A$1003,1)+SUM(IF(A$4:A87=A87,1,0))-1.5,"") -> 83.5 | D87: -1.039122509 | E87: 0.1552105067 | F87: 471.5195676
A88: -11.44438781 | B88: -0.9794660234 | C88: =IF(A88<>"",RANK(A88,A$4:A$1003,1)+SUM(IF(A$4:A88=A88,1,0))-1.5,"") -> 84.5 | D88: -1.031459094 | E88: 0.1636748843 | F88: 475.490793
A89: -11.21335971 | B89: -0.9596935219 | C89: =IF(A89<>"",RANK(A89,A$4:A$1003,1)+SUM(IF(A$4:A89=A89,1,0))-1.5,"") -> 85.5 | D89: -1.023855781 | E89: 0.1686047423 | F89: 479.2773847
A90: -11.21231467 | B90: -0.9596040822 | C90: =IF(A90<>"",RANK(A90,A$4:A$1003,1)+SUM(IF(A$4:A90=A90,1,0))-1.5,"") -> 86.5 | D90: -1.016311201 | E90: 0.1686272569 | F90: 482.4709724
A91: -11.13968435 | B91: -0.9533880287 | C91: =IF(A91<>"",RANK(A91,A$4:A$1003,1)+SUM(IF(A$4:A91=A91,1,0))-1.5,"") -> 87.5 | D91: -1.008824031 | E91: 0.1701967523 | F91: 485.8223831
A92: -11.0280945 | B92: -0.9438376296 | C92: =IF(A92<>"",RANK(A92,A$4:A$1003,1)+SUM(IF(A$4:A92=A92,1,0))-1.5,"") -> 88.5 | D92: -1.001392991 | E92: 0.172626314 | F92: 489.2412096
A93: -10.89407864 | B93: -0.9323679049 | C93: =IF(A93<>"",RANK(A93,A$4:A$1003,1)+SUM(IF(A$4:A93=A93,1,0))-1.5,"") -> 89.5 | D93: -0.99401684 | E93: 0.1755732128 | F93: 492.6960033
A94: -10.76575402 | B94: -0.9213852633 | C94: =IF(A94<>"",RANK(A94,A$4:A$1003,1)+SUM(IF(A$4:A94=A94,1,0))-1.5,"") -> 90.5 | D94: -0.9866943788 | E94: 0.17842466 | F94: 496.1197224
A95: -10.72378293 | B95: -0.9177931749 | C95: =IF(A95<>"",RANK(A95,A$4:A$1003,1)+SUM(IF(A$4:A95=A95,1,0))-1.5,"") -> 91.5 | D95: -0.9794244441 | E95: 0.1793635781 | F95: 499.2825208
A96: -10.71463176 | B96: -0.9170099738 | C96: =IF(A96<>"",RANK(A96,A$4:A$1003,1)+SUM(IF(A$4:A96=A96,1,0))-1.5,"") -> 92.5 | D96: -0.9722059087 | E96: 0.1795687069 | F96: 502.345642
A97: -10.64363609 | B97: -0.9109338207 | C97: =IF(A97<>"",RANK(A97,A$4:A$1003,1)+SUM(IF(A$4:A97=A97,1,0))-1.5,"") -> 93.5 | D97: -0.9650376802 | E97: 0.1811651222 | F97: 505.5423788
A98: -10.63219713 | B98: -0.9099548194 | C98: =IF(A98<>"",RANK(A98,A$4:A$1003,1)+SUM(IF(A$4:A98=A98,1,0))-1.5,"") -> 94.5 | D98: -0.9579186988 | E98: 0.1814231687 | F98: 508.5831211
A99: -10.59205839 | B99: -0.9065195523 | C99: =IF(A99<>"",RANK(A99,A$4:A$1003,1)+SUM(IF(A$4:A99=A99,1,0))-1.5,"") -> 95.5 | D99: -0.9508479365 | E99: 0.1823304604 | F99: 511.6718218
A100: -10.46229331 | B100: -0.8954136292 | C100: =IF(A100<>"",RANK(A100,A$4:A$1003,1)+SUM(IF(A$4:A100=A100,1,0))-1.5,"") -> 96.5 | D100: -0.9438243959 | E100: 0.1852830088 | F100: 514.9189636
A101: -10.26963868 | B101: -0.8789253144 | C101: =IF(A101<>"",RANK(A101,A$4:A$1003,1)+SUM(IF(A$4:A101=A101,1,0))-1.5,"") -> 97.5 | D101: -0.9368471084 | E101: 0.189720886 | F101: 518.3067696
A102: -10.22217759 | B102: -0.8748633657 | C102: =IF(A102<>"",RANK(A102,A$4:A$1003,1)+SUM(IF(A$4:A102=A102,1,0))-1.5,"") -> 98.5 | D102: -0.9299151334 | E102: 0.1908241271 | F102: 521.3230158
A103: -10.16164291 | B103: -0.8696825152 | C103: =IF(A103<>"",RANK(A103,A$4:A$1003,1)+SUM(IF(A$4:A103=A103,1,0))-1.5,"") -> 99.5 | D103: -0.9230275575 | E103: 0.192236965 | F103: 524.3503961
A104: -10.11666733 | B104: -0.8658332877 | C104: =IF(A104<>"",RANK(A104,A$4:A$1003,1)+SUM(IF(A$4:A104=A104,1,0))-1.5,"") -> 100.5 | D104: -0.9161834929 | E104: 0.1932907958 | F104: 527.3197415
A105: -10.09666328 | B105: -0.8641212441 | C105: =IF(A105<>"",RANK(A105,A$4:A$1003,1)+SUM(IF(A$4:A105=A105,1,0))-1.5,"") -> 101.5 | D105: -0.9093820766 | E105: 0.193760645 | F105: 530.2175009
A106: -10.05691644 | B106: -0.860719517 | C106: =IF(A106<>"",RANK(A106,A$4:A$1003,1)+SUM(IF(A$4:A106=A106,1,0))-1.5,"") -> 102.5 | D106: -0.9026224697 | E106: 0.1946962706 | F106: 533.1416341
A107: -10.00651441 | B107: -0.8564058682 | C107: =IF(A107<>"",RANK(A107,A$4:A$1003,1)+SUM(IF(A$4:A107=A107,1,0))-1.5,"") -> 103.5 | D107: -0.8959038561 | E107: 0.19588666 | F107: 536.067054
A108: -9.91080847 | B108: -0.8482148911 | C108: =IF(A108<>"",RANK(A108,A$4:A$1003,1)+SUM(IF(A$4:A108=A108,1,0))-1.5,"") -> 104.5 | D108: -0.8892254421 | E108: 0.1981591528 | F108: 539.0533451
A109: -9.887535136 | B109: -0.8462230466 | C109: =IF(A109<>"",RANK(A109,A$4:A$1003,1)+SUM(IF(A$4:A109=A109,1,0))-1.5,"") -> 105.5 | D109: -0.882586455 | E109: 0.1987141637 | F109: 541.8868908
A110: -9.871714775 | B110: -0.8448690637 | C110: =IF(A110<>"",RANK(A110,A$4:A$1003,1)+SUM(IF(A$4:A110=A110,1,0))-1.5,"") -> 106.5 | D110: -0.8759861428 | E110: 0.1990919744 | F110: 544.697817
A111: -9.846612618 | B111: -0.8427206998 | C111: =IF(A111<>"",RANK(A111,A$4:A$1003,1)+SUM(IF(A$4:A111=A111,1,0))-1.5,"") -> 107.5 | D111: -0.8694237733 | E111: 0.1996923338 | F111: 547.5115624
A112: -9.83347194 | B112: -0.841596057 | C112: =IF(A112<>"",RANK(A112,A$4:A$1003,1)+SUM(IF(A$4:A112=A112,1,0))-1.5,"") -> 108.5 | D112: -0.8628986334 | E112: 0.2000070485 | F112: 550.3006577
A113: -9.758620911 | B113: -0.8351899442 | C113: =IF(A113<>"",RANK(A113,A$4:A$1003,1)+SUM(IF(A$4:A113=A113,1,0))-1.5,"") -> 109.5 | D113: -0.8564100282 | E113: 0.2018053853 | F113: 553.1360223
A114: -9.736329066 | B114: -0.8332821003 | C114: =IF(A114<>"",RANK(A114,A$4:A$1003,1)+SUM(IF(A$4:A114=A114,1,0))-1.5,"") -> 110.5 | D114: -0.8499572809 | E114: 0.2023428245 | F114: 555.9025146
A115: -9.717108794 | B115: -0.8316371366 | C115: =IF(A115<>"",RANK(A115,A$4:A$1003,1)+SUM(IF(A$4:A115=A115,1,0))-1.5,"") -> 111.5 | D115: -0.8435397314 | E115: 0.2028068969 | F115: 558.655939
A116: -9.651998531 | B116: -0.8260646855 | C116: =IF(A116<>"",RANK(A116,A$4:A$1003,1)+SUM(IF(A$4:A116=A116,1,0))-1.5,"") -> 112.5 | D116: -0.8371567365 | E116: 0.2043836995 | F116: 561.4190905
A117: -9.646049567 | B117: -0.8255555445 | C117: =IF(A117<>"",RANK(A117,A$4:A$1003,1)+SUM(IF(A$4:A117=A117,1,0))-1.5,"") -> 113.5 | D117: -0.8308076686 | E117: 0.204528131 | F117: 564.1387308
A118: -9.547596864 | B118: -0.8171294863 | C118: =IF(A118<>"",RANK(A118,A$4:A$1003,1)+SUM(IF(A$4:A118=A118,1,0))-1.5,"") -> 114.5 | D118: -0.8244919159 | E118: 0.2069272169 | F118: 566.8698964
A119: -9.521643847 | B119: -0.8149083016 | C119: =IF(A119<>"",RANK(A119,A$4:A$1003,1)+SUM(IF(A$4:A119=A119,1,0))-1.5,"") -> 115.5 | D119: -0.8182088811 | E119: 0.2075624004 | F119: 569.5596968
A120: -9.371811158 | B120: -0.8020848959 | C120: =IF(A120<>"",RANK(A120,A$4:A$1003,1)+SUM(IF(A$4:A120=A120,1,0))-1.5,"") -> 116.5 | D120: -0.8119579815 | E120: 0.2112519257 | F120: 572.2638593
A121: -9.324872598 | B121: -0.7980676671 | C121: =IF(A121<>"",RANK(A121,A$4:A$1003,1)+SUM(IF(A$4:A121=A121,1,0))-1.5,"") -> 117.5 | D121: -0.8057386483 | E121: 0.2124156117 | F121: 574.9114034
A122: -9.243680714 | B122: -0.7911188732 | C122: =IF(A122<>"",RANK(A122,A$4:A$1003,1)+SUM(IF(A$4:A122=A122,1,0))-1.5,"") -> 118.5 | D122: -0.7995503261 | E122: 0.2144373134 | F122: 577.5516378
A123: -9.197525935 | B123: -0.7871687242 | C123: =IF(A123<>"",RANK(A123,A$4:A$1003,1)+SUM(IF(A$4:A123=A123,1,0))-1.5,"") -> 119.5 | D123: -0.7933924726 | E123: 0.2155915516 | F123: 580.1578797
A124: -9.127381119 | B124: -0.7811653918 | C124: =IF(A124<>"",RANK(A124,A$4:A$1003,1)+SUM(IF(A$4:A124=A124,1,0))-1.5,"") -> 120.5 | D124: -0.787264558 | E124: 0.2173526128 | F124: 582.751505
A125: -9.081293419 | B125: -0.7772209837 | C125: =IF(A125<>"",RANK(A125,A$4:A$1003,1)+SUM(IF(A$4:A125=A125,1,0))-1.5,"") -> 121.5 | D125: -0.7811660645 | E125: 0.2185142021 | F125: 585.3182516
A126: -9.039258782 | B126: -0.7736234562 | C126: =IF(A126<>"",RANK(A126,A$4:A$1003,1)+SUM(IF(A$4:A126=A126,1,0))-1.5,"") -> 122.5 | D126: -0.7750964865 | E126: 0.2195767484 | F126: 587.8662758
A127: -8.731550829 | B127: -0.7472883224 | C127: =IF(A127<>"",RANK(A127,A$4:A$1003,1)+SUM(IF(A$4:A127=A127,1,0))-1.5,"") -> 123.5 | D127: -0.7690553295 | E127: 0.2274447699 | F127: 590.5325146
A128: -8.71612236 | B128: -0.7459678794 | C128: =IF(A128<>"",RANK(A128,A$4:A$1003,1)+SUM(IF(A$4:A128=A128,1,0))-1.5,"") -> 124.5 | D128: -0.76304211 | E128: 0.2278434093 | F128: 592.9905905
A129: -8.679316457 | B129: -0.7428178523 | C129: =IF(A129<>"",RANK(A129,A$4:A$1003,1)+SUM(IF(A$4:A129=A129,1,0))-1.5,"") -> 125.5 | D129: -0.7570563556 | E129: 0.2287959828 | F129: 595.4546861
A130: -8.584853265 | B130: -0.7347332358 | C130: =IF(A130<>"",RANK(A130,A$4:A$1003,1)+SUM(IF(A$4:A130=A130,1,0))-1.5,"") -> 126.5 | D130: -0.7510976038 | E130: 0.2312509874 | F130: 597.9426569
A131: -8.534712502 | B131: -0.730441947 | C131: =IF(A131<>"",RANK(A131,A$4:A$1003,1)+SUM(IF(A$4:A131=A131,1,0))-1.5,"") -> 127.5 | D131: -0.7451654025 | E131: 0.232560043 | F131: 600.3765584
A132: -8.521441194 | B132: -0.7293061243 | C132: =IF(A132<>"",RANK(A132,A$4:A$1003,1)+SUM(IF(A$4:A132=A132,1,0))-1.5,"") -> 128.5 | D132: -0.7392593092 | E132: 0.2329072134 | F132: 602.770596
A133: -8.427108632 | B133: =+IF(A133<>"",(A133-K$2)/K$3,"") -> -0.7212326877 | C133: =IF(A133<>"",RANK(A133,A$4:A$1003,1)+SUM(IF(A$4:A133=A133,1,0))-1.5,"") -> 129.5 | D133: =IF(A133<>"",NORMSINV(C133/($K$1)),"") -> -0.7333788909 | E133: =IF(A133<>"",NORMDIST(A133,$K$2,$K$3,1),"") -> 0.2353831818 | F133: =IF(A133<>"",-2*C133*LN(E133)-(2*$K$1-2*C133)*LN(1-E133),"") -> 605.1928145
A134: -8.407365839 | B134: -0.7195430041 | C134: =IF(A134<>"",RANK(A134,A$4:A$1003,1)+SUM(IF(A$4:A134=A134,1,0))-1.5,"") -> 130.5 | D134: -0.7275237236 | E134: 0.2359032077 | F134: 607.5562054
A135: -8.39481476 | B135: -0.7184688221 | C135: =IF(A135<>"",RANK(A135,A$4:A$1003,1)+SUM(IF(A$4:A135=A135,1,0))-1.5,"") -> 131.5 | D135: -0.7216933925 | E135: 0.2362341326 | F135: 609.9084481
A136: -8.222492518 | B136: -0.7037206517 | C136: =IF(A136<>"",RANK(A136,A$4:A$1003,1)+SUM(IF(A$4:A136=A136,1,0))-1.5,"") -> 132.5 | D136: -0.7158874912 | E136: 0.2408033784 | F136: 612.2970448
A137: -8.14881716 | B137: -0.6974151585 | C137: =IF(A137<>"",RANK(A137,A$4:A$1003,1)+SUM(IF(A$4:A137=A137,1,0))-1.5,"") -> 133.5 | D137: -0.7101056217 | E137: 0.2427715089 | F137: 614.629219
A138: -8.018921445 | B138: -0.6862980554 | C138: =IF(A138<>"",RANK(A138,A$4:A$1003,1)+SUM(IF(A$4:A138=A138,1,0))-1.5,"") -> 134.5 | D138: -0.7043473943 | E138: 0.2462625875 | F138: 616.9868367
A139: -7.994864329 | B139: -0.6842391311 | C139: =IF(A139<>"",RANK(A139,A$4:A$1003,1)+SUM(IF(A$4:A139=A139,1,0))-1.5,"") -> 135.5 | D139: -0.6986124269 | E139: 0.2469120881 | F139: 619.2405053
A140: -7.807441956 | B140: -0.6681986185 | C140: =IF(A140<>"",RANK(A140,A$4:A$1003,1)+SUM(IF(A$4:A140=A140,1,0))-1.5,"") -> 136.5 | D140: -0.6929003452 | E140: 0.2520034086 | F140: 621.6309026
A141: -7.708858623 | B141: -0.6597613804 | C141: =IF(A141<>"",RANK(A141,A$4:A$1003,1)+SUM(IF(A$4:A141=A141,1,0))-1.5,"") -> 137.5 | D141: -0.6872107826 | E141: 0.2547034851 | F141: 623.9245351
A142: -7.679113803 | B142: -0.657215675 | C142: =IF(A142<>"",RANK(A142,A$4:A$1003,1)+SUM(IF(A$4:A142=A142,1,0))-1.5,"") -> 138.5 | D142: -0.6815433792 | E142: 0.255521124 | F142: 626.1072476
A143: -7.669242407 | B143: -0.6563708332 | C143: =IF(A143<>"",RANK(A143,A$4:A$1003,1)+SUM(IF(A$4:A143=A143,1,0))-1.5,"") -> 139.5 | D143: -0.6758977827 | E143: 0.2557927761 | F143: 628.2557484
A144: -7.597399399 | B144: -0.6502221613 | C144: =IF(A144<>"",RANK(A144,A$4:A$1003,1)+SUM(IF(A$4:A144=A144,1,0))-1.5,"") -> 140.5 | D144: -0.6702736472 | E144: 0.257774364 | F144: 630.4548144
A145: -7.53640575 | B145: -0.64500203 | C145: =IF(A145<>"",RANK(A145,A$4:A$1003,1)+SUM(IF(A$4:A145=A145,1,0))-1.5,"") -> 141.5 | D145: -0.6646706336 | E145: 0.2594629351 | F145: 632.6239813
A146: -7.520062869 | B146: -0.6436033273 | C146: =IF(A146<>"",RANK(A146,A$4:A$1003,1)+SUM(IF(A$4:A146=A146,1,0))-1.5,"") -> 142.5 | D146: -0.6590884093 | E146: 0.2599163461 | F146: 634.7340824
A147: -7.248896032 | B147: -0.6203955588 | C147: =IF(A147<>"",RANK(A147,A$4:A$1003,1)+SUM(IF(A$4:A147=A147,1,0))-1.5,"") -> 143.5 | D147: -0.6535266479 | E147: 0.2674986978 | F147: 637.1319699
A148: -7.193918426 | B148: -0.6156903095 | C148: =IF(A148<>"",RANK(A148,A$4:A$1003,1)+SUM(IF(A$4:A148=A148,1,0))-1.5,"") -> 144.5 | D148: -0.6479850291 | E148: 0.2690494671 | F148: 639.2330157
A149: -7.057028706 | B149: -0.6039746256 | C149: =IF(A149<>"",RANK(A149,A$4:A$1003,1)+SUM(IF(A$4:A149=A149,1,0))-1.5,"") -> 145.5 | D149: -0.6424632386 | E149: 0.2729302562 | F149: 641.466931
A150: -6.894902671 | B150: -0.5900990959 | C150: =IF(A150<>"",RANK(A150,A$4:A$1003,1)+SUM(IF(A$4:A150=A150,1,0))-1.5,"") -> 146.5 | D150: -0.6369609678 | E150: 0.2775621075 | F150: 643.7683494
A151: -6.834367991 | B151: -0.5849182455 | C151: =IF(A151<>"",RANK(A151,A$4:A$1003,1)+SUM(IF(A$4:A151=A151,1,0))-1.5,"") -> 147.5 | D151: -0.6314779139 | E151: 0.2793013449 | F151: 645.82251
A152: -6.704472277 | B152: -0.5738011424 | C152: =IF(A152<>"",RANK(A152,A$4:A$1003,1)+SUM(IF(A$4:A152=A152,1,0))-1.5,"") -> 148.5 | D152: -0.6260137792 | E152: 0.2830511878 | F152: 648.0403076
A153: -6.667341562 | B153: -0.5706233163 | C153: =IF(A153<>"",RANK(A153,A$4:A$1003,1)+SUM(IF(A$4:A153=A153,1,0))-1.5,"") -> 149.5 | D153: -0.6205682718 | E153: 0.2841275049 | F153: 649.9946988
A154: -6.612166246 | B154: -0.5659011461 | C154: =IF(A154<>"",RANK(A154,A$4:A$1003,1)+SUM(IF(A$4:A154=A154,1,0))-1.5,"") -> 150.5 | D154: -0.6151411046 | E154: 0.2857304912 | F154: 651.9809349
A155: -6.546466384 | B155: -0.5602782343 | C155: =IF(A155<>"",RANK(A155,A$4:A$1003,1)+SUM(IF(A$4:A155=A155,1,0))-1.5,"") -> 151.5 | D155: -0.6097319957 | E155: 0.2876448356 | F155: 653.9773296
A156: -6.421605221 | B156: -0.5495920126 | C156: =IF(A156<>"",RANK(A156,A$4:A$1003,1)+SUM(IF(A$4:A156=A156,1,0))-1.5,"") -> 152.5 | D156: -0.6043406681 | E156: 0.2912996193 | F156: 656.1220316
A157: -6.414282877 | B157: -0.548965331 | C157: =IF(A157<>"",RANK(A157,A$4:A$1003,1)+SUM(IF(A$4:A157=A157,1,0))-1.5,"") -> 153.5 | D157: -0.5989668497 | E157: 0.2915146211 | F157: 657.9197605
A158: -6.378327834 | B158: -0.5458881246 | C158: =IF(A158<>"",RANK(A158,A$4:A$1003,1)+SUM(IF(A$4:A158=A158,1,0))-1.5,"") -> 154.5 | D158: -0.5936102728 | E158: 0.292571421 | F158: 659.7853083
A159: -6.366691166 | B159: -0.5448922023 | C159: =IF(A159<>"",RANK(A159,A$4:A$1003,1)+SUM(IF(A$4:A159=A159,1,0))-1.5,"") -> 155.5 | D159: -0.5882706744 | E159: 0.2929138298 | F159: 661.5780981
A160: -6.236795452 | B160: -0.5337750992 | C160: =IF(A160<>"",RANK(A160,A$4:A$1003,1)+SUM(IF(A$4:A160=A160,1,0))-1.5,"") -> 156.5 | D160: -0.582947796 | E160: 0.2967485718 | F160: 663.6471729
A161: -6.2367319 | B161: -0.5337696602 | C161: =IF(A161<>"",RANK(A161,A$4:A$1003,1)+SUM(IF(A$4:A161=A161,1,0))-1.5,"") -> 157.5 | D161: -0.5776413834 | E161: 0.2967504536 | F161: 665.3729826
A162: -6.102585414 | B162: -0.5222887555 | C162: =IF(A162<>"",RANK(A162,A$4:A$1003,1)+SUM(IF(A$4:A162=A162,1,0))-1.5,"") -> 158.5 | D162: -0.5723511864 | E162: 0.3007346485 | F162: 667.4217686
A163: -6.051268979 | B163: -0.517896847 | C163: =IF(A163<>"",RANK(A163,A$4:A$1003,1)+SUM(IF(A$4:A163=A163,1,0))-1.5,"") -> 159.5 | D163: -0.5670769591 | E163: 0.302265121 | F163: 669.2407395
A164: -6.038781452 | B164: -0.5168281041 | C164: =IF(A164<>"",RANK(A164,A$4:A$1003,1)+SUM(IF(A$4:A164=A164,1,0))-1.5,"") -> 160.5 | D164: -0.5618184595 | E164: 0.3026380798 | F164: 670.9441103
A165: -5.859203944 | B165: -0.501458993 | C165: =IF(A165<>"",RANK(A165,A$4:A$1003,1)+SUM(IF(A$4:A165=A165,1,0))-1.5,"") -> 161.5 | D165: -0.5565754496 | E165: 0.3080240654 | F165: 673.0797487
A166: -5.829720385 | B166: -0.4989356475 | C166: =IF(A166<>"",RANK(A166,A$4:A$1003,1)+SUM(IF(A$4:A166=A166,1,0))-1.5,"") -> 162.5 | D166: -0.5513476951 | E166: 0.30891236 | F166: 674.7812274
A167: -5.62196562 | B167: -0.4811549905 | C167: =IF(A167<>"",RANK(A167,A$4:A$1003,1)+SUM(IF(A$4:A167=A167,1,0))-1.5,"") -> 163.5 | D167: -0.5461349654 | E167: 0.3152031737 | F167: 677.0326508
A168: -5.615102245 | B168: -0.4805675897 | C168: =IF(A168<>"",RANK(A168,A$4:A$1003,1)+SUM(IF(A$4:A168=A168,1,0))-1.5,"") -> 164.5 | D168: -0.5409370336 | E168: 0.3154119274 | F168: 678.607197
A169: -5.486643462 | B169: -0.4695734662 | C169: =IF(A169<>"",RANK(A169,A$4:A$1003,1)+SUM(IF(A$4:A169=A169,1,0))-1.5,"") -> 165.5 | D169: -0.5357536762 | E169: 0.3193298927 | F169: 680.5878204
A170: -5.464351617 | B170: -0.4676656224 | C170: =IF(A170<>"",RANK(A170,A$4:A$1003,1)+SUM(IF(A$4:A170=A170,1,0))-1.5,"") -> 166.5 | D170: -0.5305846732 | E170: 0.3200118645 | F170: 682.1780141
A171: -5.45520045 | B171: -0.4668824213 | C171: =IF(A171<>"",RANK(A171,A$4:A$1003,1)+SUM(IF(A$4:A171=A171,1,0))-1.5,"") -> 167.5 | D171: -0.525429808 | E171: 0.3202920014 | F171: 683.714961
A172: -5.444739454 | B172: -0.4659871187 | C172: =IF(A172<>"",RANK(A172,A$4:A$1003,1)+SUM(IF(A$4:A172=A172,1,0))-1.5,"") -> 168.5 | D172: -0.5202888673 | E172: 0.3206123604 | F172: 685.251106
A173: -5.415976125 | B173: -0.463525414 | C173: =IF(A173<>"",RANK(A173,A$4:A$1003,1)+SUM(IF(A$4:A173=A173,1,0))-1.5,"") -> 169.5 | D173: -0.5151616409 | E173: 0.3214939014 | F173: 686.833654
A174: -5.388127207 | B174: -0.461141969 | C174: =IF(A174<>"",RANK(A174,A$4:A$1003,1)+SUM(IF(A$4:A174=A174,1,0))-1.5,"") -> 170.5 | D174: -0.5100479216 | E174: 0.3223483764 | F174: 688.4014969
A175: -5.374922978 | B175: -0.4600118872 | C175: =IF(A175<>"",RANK(A175,A$4:A$1003,1)+SUM(IF(A$4:A175=A175,1,0))-1.5,"") -> 171.5 | D175: -0.5049475056 | E175: 0.3227538441 | F175: 689.9201786
A176: -5.368906935 | B176: -0.4594970052 | C176: =IF(A176<>"",RANK(A176,A$4:A$1003,1)+SUM(IF(A$4:A176=A176,1,0))-1.5,"") -> 172.5 | D176: -0.4998601918 | E176: 0.3229386511 | F176: 691.415945
A177: -5.324976396 | B177: -0.4557372174 | C177: =IF(A177<>"",RANK(A177,A$4:A$1003,1)+SUM(IF(A$4:A177=A177,1,0))-1.5,"") -> 173.5 | D177: -0.494785782 | E177: 0.3242894778 | F177: 692.9878811
A178: -5.161088618 | B178: -0.4417109092 | C178: =IF(A178<>"",RANK(A178,A$4:A$1003,1)+SUM(IF(A$4:A178=A178,1,0))-1.5,"") -> 174.5 | D178: -0.4897240809 | E178: 0.3293492072 | F178: 694.8328547
A179: -5.107809204 | B179: -0.4371509994 | C179: =IF(A179<>"",RANK(A179,A$4:A$1003,1)+SUM(IF(A$4:A179=A179,1,0))-1.5,"") -> 175.5 | D179: -0.484674896 | E179: 0.3310009217 | F179: 696.3905574
A180: -5.104539922 | B180: -0.4368711985 | C180: =IF(A180<>"",RANK(A180,A$4:A$1003,1)+SUM(IF(A$4:A180=A180,1,0))-1.5,"") -> 176.5 | D180: -0.4796380375 | E180: 0.3311023803 | F180: 697.8057218
A181: -5.032760465 | B181: -0.4307279656 | C181: =IF(A181<>"",RANK(A181,A$4:A$1003,1)+SUM(IF(A$4:A181=A181,1,0))-1.5,"") -> 177.5 | D181: -0.4746133181 | E181: 0.3333330911 | F181: 699.3772207
A182: -4.99661124 | B182: -0.4276341402 | C182: =IF(A182<>"",RANK(A182,A$4:A$1003,1)+SUM(IF(A$4:A182=A182,1,0))-1.5,"") -> 178.5 | D182: -0.4696005533 | E182: 0.334458753 | F182: 700.8459922
A183: -4.883189037 | B183: -0.4179269198 | C183: =IF(A183<>"",RANK(A183,A$4:A$1003,1)+SUM(IF(A$4:A183=A183,1,0))-1.5,"") -> 179.5 | D183: -0.4645995608 | E183: 0.3380002749 | F183: 702.4903917
A184: -4.75002404 | B184: -0.4065300158 | C184: =IF(A184<>"",RANK(A184,A$4:A$1003,1)+SUM(IF(A$4:A184=A184,1,0))-1.5,"") -> 180.5 | D184: -0.4596101611 | E184: 0.3421766036 | F184: 704.1924279
A185: -4.649350624 | B185: -0.3979138983 | C185: =IF(A185<>"",RANK(A185,A$4:A$1003,1)+SUM(IF(A$4:A185=A185,1,0))-1.5,"") -> 181.5 | D185: -0.4546321768 | E185: 0.3453468274 | F185: 705.7993202
A186: -4.567307881 | B186: -0.3908922837 | C186: =IF(A186<>"",RANK(A186,A$4:A$1003,1)+SUM(IF(A$4:A186=A186,1,0))-1.5,"") -> 182.5 | D186: -0.4496654332 | E186: 0.3479384289 | F186: 707.3364207
A187: -4.472844689 | B187: -0.3828076672 | C187: =IF(A187<>"",RANK(A187,A$4:A$1003,1)+SUM(IF(A$4:A187=A187,1,0))-1.5,"") -> 183.5 | D187: -0.4447097574 | E187: 0.3509311881 | F187: 708.9042208
A188: -4.441857119 | B188: -0.3801556012 | C188: =IF(A188<>"",RANK(A188,A$4:A$1003,1)+SUM(IF(A$4:A188=A188,1,0))-1.5,"") -> 184.5 | D188: -0.4397649793 | E188: 0.3519149573 | F188: 710.2372358
A189: -4.16650659 | B189: -0.356589772 | C189: =IF(A189<>"",RANK(A189,A$4:A$1003,1)+SUM(IF(A$4:A189=A189,1,0))-1.5,"") -> 185.5 | D189: -0.4348309305 | E189: 0.3606994677 | F189: 712.505794
A190: -4.152649209 | B190: -0.3554037905 | C190: =IF(A190<>"",RANK(A190,A$4:A$1003,1)+SUM(IF(A$4:A190=A190,1,0))-1.5,"") -> 186.5 | D190: -0.429907445 | E190: 0.3611435548 | F190: 713.7091948
A191: -4.149510558 | B191: -0.3551351695 | C191: =IF(A191<>"",RANK(A191,A$4:A$1003,1)+SUM(IF(A$4:A191=A191,1,0))-1.5,"") -> 187.5 | D191: -0.4249943588 | E191: 0.3612441651 | F191: 714.8625678
A192: -4.100743176 | B192: -0.3509614212 | C192: =IF(A192<>"",RANK(A192,A$4:A$1003,1)+SUM(IF(A$4:A192=A192,1,0))-1.5,"") -> 188.5 | D192: -0.4200915099 | E192: 0.3628086455 | F192: 716.1904429
A193: -4.070931278 | B193: -0.3484099749 | C193: =IF(A193<>"",RANK(A193,A$4:A$1003,1)+SUM(IF(A$4:A193=A193,1,0))-1.5,"") -> 189.5 | D193: -0.4151987386 | E193: 0.3637661562 | F193: 717.4292414
A194: -4.039880157 | B194: -0.3457524699 | C194: =IF(A194<>"",RANK(A194,A$4:A$1003,1)+SUM(IF(A$4:A194=A194,1,0))-1.5,"") -> 190.5 | D194: -0.4103158866 | E194: 0.364764374 | F194: 718.6604964
A195: -4.01444966 | B195: -0.3435760051 | C195: =IF(A195<>"",RANK(A195,A$4:A$1003,1)+SUM(IF(A$4:A195=A195,1,0))-1.5,"") -> 191.5 | D195: -0.405442798 | E195: 0.3655825863 | F195: 719.8591538
A196: -3.929727235 | B196: -0.3363250504 | C196: =IF(A196<>"",RANK(A196,A$4:A$1003,1)+SUM(IF(A$4:A196=A196,1,0))-1.5,"") -> 192.5 | D196: -0.4005793186 | E196: 0.3683128808 | F196: 721.2583215
A197: -3.853894715 | B197: =+IF(A197<>"",(A197-K$2)/K$3,"") -> -0.3298349369 | C197: =IF(A197<>"",RANK(A197,A$4:A$1003,1)+SUM(IF(A$4:A197=A197,1,0))-1.5,"") -> 193.5 | D197: =IF(A197<>"",NORMSINV(C197/($K$1)),"") -> -0.3957252958 | E197: =IF(A197<>"",NORMDIST(A197,$K$2,$K$3,1),"") -> 0.3707623437 | F197: =IF(A197<>"",-2*C197*LN(E197)-(2*$K$1-2*C197)*LN(1-E197),"") -> 722.6120971
A198: -3.847815121 | B198: -0.3293146158 | C198: =IF(A198<>"",RANK(A198,A$4:A$1003,1)+SUM(IF(A$4:A198=A198,1,0))-1.5,"") -> 194.5 | D198: -0.3908805791 | E198: 0.3709589489 | F198: 723.6915826
A199: -3.804407103 | B199: -0.3255995479 | C199: =IF(A199<>"",RANK(A199,A$4:A$1003,1)+SUM(IF(A$4:A199=A199,1,0))-1.5,"") -> 195.5 | D199: -0.3860450196 | E199: 0.3723636772 | F199: 724.8952689
A200: -3.746749815 | B200: -0.3206649584 | C200: =IF(A200<>"",RANK(A200,A$4:A$1003,1)+SUM(IF(A$4:A200=A200,1,0))-1.5,"") -> 196.5 | D200: -0.3812184701 | E200: 0.3742321526 | F200: 726.1339004
... 362 more rows

Sheet Example data set
A1: Example Data Set
A3: =+'General Info'!B7 -> Length
A4: Test Method
A5: X | B5: Y
A6: Alternate | B6: Designated
A7: 5655.74 | B7: 5650
A8: 6044.16 | B8: 6040
A9: 5783.44 | B9: 5790
A10: 5530.85 | B10: 5520
A11: 6138.03 | B11: 6140
A12: 5865.06 | B12: 5860
A13: 5666.66 | B13: 5650
A14: 6123.04 | B14: 6130
A15: 5829.36 | B15: 5820
A16: 6040.95 | B16: 6010
A17: 6008.81 | B17: 6000
A18: 5435.37 | B18: 5430
A19: 5601.08 | B19: 5600
A20: 5492.71 | B20: 5490
A21: 5796.65 | B21: 5810
A22: 6112.29 | B22: 6110
A23: 5957.71 | B23: 5940
A24: 5977.64 | B24: 5980
A25: 6081.94 | B25: 6100
A26: 5486.68 | B26: 5490
A27: 5504.95 | B27: 5500
A28: 5761.72 | B28: 5780
A29: 6107.12 | B29: 6100
A30: 5352 | B30: 5340
A31: 6037.93 | B31: 6040
A32: 6096.5 | B32: 6080
A33: 6108.76 | B33: 6100
A34: 5561.14 | B34: 5560
A35: 5850.84 | B35: 5850
A36: 5704.65 | B36: 5710
A37: 6012.85 | B37: 6010
A38: 5745.6 | B38: 5750
A39: 5949.39 | B39: 5960
A40: 5875.73 | B40: 5880
A41: 5892.61 | B41: 5890
A42: 5498.75 | B42: 5500
A43: 6106.17 | B43: 6110
A44: 5650.65 | B44: 5660
A45: 5577.68 | B45: 5580
A46: 5934.85 | B46: 5930
A47: 5671.56 | B47: 5680
A48: 6180.97 | B48: 6200
A49: 5835.95 | B49: 5840
A50: 5998.74 | B50: 6000
A51: 5950.86 | B51: 5950
A52: 5672.99 | B52: 5680
A53: 5669 | B53: 5680
A54: 5441.75 | B54: 5420
A55: 6022.06 | B55: 6030
A56: 5986.08 | B56: 6000
A57: 5527.25 | B57: 5520
A58: 5919.79 | B58: 5930
A59: 5768.17 | B59: 5750
A60: 5689.97 | B60: 5700
A61: 5658.84 | B61: 5640
A62: 5363.19 | B62: 5360
A63: 5542.67 | B63: 5540
A64: 5721.89 | B64: 5720
A65: 6302.83 | B65: 6310
A66: 6097.26 | B66: 6100
A67: 5502.26 | B67: 5510
A68: 5384.3 | B68: 5380
A69: 6362.51 | B69: 6360
A70: 5890.45 | B70: 5880
A71: 5989.1 | B71: 5980
A72: 6177.46 | B72: 6180
A73: 6170.59 | B73: 6160
A74: 5637.03 | B74: 5620
A75: 5825.74 | B75: 5830
A76: 5553.63 | B76: 5540
A77: 6075.04 | B77: 6060
A78: 5937.82 | B78: 5930
A79: 6316.07 | B79: 6320
A80: 5674.49 | B80: 5670
A81: 5392.21 | B81: 5390
A82: 5662.55 | B82: 5670
A83: 5875.88 | B83: 5890
A84: 5696.89 | B84: 5710
A85: 5499.8 | B85: 5500
A86: 5691.9 | B86: 5700
A87: 5827.25 | B87: 5840
A88: 5959.23 | B88: 5930
A89: 6120.21 | B89: 6120
A90: 5342.72 | B90: 5350
A91: 5490.68 | B91: 5460
A92: 6066.05 | B92: 6050
A93: 5852.83 | B93: 5850
A94: 5523.61 | B94: 5540
A95: 5852.31 | B95: 5850
A96: 5484.85 | B96: 5480
A97: 6094.07 | B97: 6090
A98: 5937.11 | B98: 5940
A99: 5709.46 | B99: 5690
A100: 5429.21 | B100: 5430
A101: 5857.94 | B101: 5860
A102: 6164.34 | B102: 6190
A103: 5969.56 | B103: 5970
A104: 5650.91 | B104: 5640
A105: 5526.36 | B105: 5520
A106: 5524.78 | B106: 5520
A107: 6010.76 | B107: 6020
A108: 6406.39 | B108: 6430
A109: 6160.05 | B109: 6140
A110: 6173.3 | B110: 6150
A111: 5902.01 | B111: 5940
A112: 5751 | B112: 5740
A113: 5939.29 | B113: 5940
A114: 5433.76 | B114: 5430
A115: 6001.7 | B115: 6000
A116: 5440.46 | B116: 5430
A117: 5593.15 | B117: 5570
A118: 6082.44 | B118: 6080
A119: 5688.63 | B119: 5710
A120: 5634.39 | B120: 5630
A121: 5701.17 | B121: 5690
A122: 5073.57 | B122: 5100
A123: 5889.66 | B123: 5880
A124: 6072.94 | B124: 6060
A125: 5811.92 | B125: 5810
A126: 6134.88 | B126: 6130
A127: 6232.1 | B127: 6230
A128: 5453.07 | B128: 5460
A129: 5896.32 | B129: 5900
A130: 6186.05 | B130: 6200
A131: 5551.89 | B131: 5550
A132: 5873.7 | B132: 5850
A133: 6087.98 | B133: 6080
A134: 5531.83 | B134: 5520
A135: 5594.44 | B135: 5600
A136: 5716.22 | B136: 5730
A137: 5921.94 | B137: 5930
A138: 5887.96 | B138: 5880
A139: 5995.15 | B139: 6000
A140: 5602.15 | B140: 5600
A141: 6130 | B141: 6110
A142: 5765.75 | B142: 5750
A143: 5333.87 | B143: 5350
A144: 6044.14 | B144: 6040
A145: 5481.8 | B145: 5470
A146: 6116.64 | B146: 6130
A147: 6131.8 | B147: 6120
A148: 5559.5 | B148: 5560
A149: 5610.82 | B149: 5610
A150: 5718.68 | B150: 5710
A151: 6158.77 | B151: 6160
A152: 5934.97 | B152: 5930
A153: 5411.43 | B153: 5420
A154: 5993.06 | B154: 5990
A155: 5480.58 | B155: 5470
A156: 6211.61 | B156: 6230
A157: 6081.7 | B157: 6090
A158: 5900.13 | B158: 5900
A159: 5963.04 | B159: 5980
A160: 5404.19 | B160: 5400
A161: 5485.92 | B161: 5490
A162: 5920.77 | B162: 5950
A163: 6315.12 | B163: 6300
A164: 5848.67 | B164: 5840
A165: 5649.89 | B165: 5640
A166: 5307.48 | B166: 5300
A167: 5739.96 | B167: 5740
A168: 5517.06 | B168: 5510
A169: 6114.72 | B169: 6120
A170: 5964.79 | B170: 5940
A171: 5930.66 | B171: 5940
A172: 5653.64 | B172: 5670
A173: 5433.93 | B173: 5440
A174: 5708.84 | B174: 5680
A175: 5494.19 | B175: 5510
A176: 5616.72 | B176: 5650
A177: 6236.38 | B177: 6230
A178: 6044.33 | B178: 6070
A179: 5486.16 | B179: 5490
A180: 5368.49 | B180: 5340
A181: 6321.26 | B181: 6310
A182: 5990.48 | B182: 6000
A183: 6170.94 | B183: 6160
A184: 5751.27 | B184: 5740
A185: 5496.08 | B185: 5500
A186: 5847.8 | B186: 5860
A187: 6022.26 | B187: 6030
A188: 6046.05 | B188: 6060
A189: 6047.46 | B189: 6040
A190: 5430.9 | B190: 5440
A191: 5956.99 | B191: 5940
A192: 5904.26 | B192: 5890
A193: 5645.53 | B193: 5630
A194: 5493.92 | B194: 5490
A195: 5396.6 | B195: 5430
A196: 5689.51 | B196: 5700
A197: 5640.99 | B197: 5640
A198: 5542.64 | B198: 5530
A199: 5406.04 | B199: 5420
A200: 6114.65 | B200: 6110
A201: 6043.77 | B201: 6050
... 364 more rows
